Workbook

Sheet DC
F2: Busby Quarter Horses & Tanner Equine
A3: Futurity | B3: Der | C3: HS | D3: Age Inct. | E3: Open C/O | F3: YOU | G3: Draw | H3: Rider Name | I3: Horse Name | J3: Pen | K3: Time | L3: Final Time | M3: Placing | N3: Money Earned | P3: D Placing | R3: Split
D4: A | E4: X | G4: 10 | H4: Stephanie Fryar | I4: Some Streakin French | K4: 15.655 | P4: 1D
C5: X | D5: A | E5: X | G5: 3 | H5: Jimmie Smith | I5: Marthas Bullion | K5: 15.709 | P5: 2D | R5: 0.5
D6: S | E6: X | G6: 1 | H6: Tammy Fisher | I6: A Valiant Nicky | K6: 15.848 | P6: 3D | R6: 0.5
D7: S | E7: X | G7: 8 | H7: Martha Smith | I7: Firewatermakemehappy | K7: 16.039 | P7: 4D | R7: 0.5
D8: S | E8: X | G8: 4 | H8: Jenny Zant | I8: Raise Me Ta Fame | K8: 16.044 | P8: 5D | R8: 0.5
E9: X | G9: 6 | H9: Becky Dillard | I9: Wow Shes Hot | K9: 16.076
E10: X | G10: 7 | H10: Casey Hammons | I10: BH Trip Ta Fame | K10: 16.592 | P10: # Entered
E11: X | G11: 5 | H11: Courtney Worthington | I11: CM Bubblin Barbie | K11: 16.67 | P11: =COUNTA(H4:H502) -> 12
E12: X | G12: 2 | H12: Kelly Bruner | I12: Tuffernell | K12: nt
B13: X | C13: X | D13: A | E13: X | G13: 9 | H13: SheaLynn McConnell | I13: Smooth N Heavenly | K13: nt16.024 | P13: # Ran
C14: X | D14: A | E14: X | G14: 11 | H14: Jennifer Sharp | I14: Mitos Cutter | K14: nt16.024 | P14: =COUNTA(K4:K502) -> 12
B15: X | D15: S | E15: X | G15: 12 | H15: Martha Jordan | I15: MV Fury Of The Fame | K15: nt16.460
G16: 13 | P16: # Left
G17: 14 | P17: =$P$11-$P$14 -> 0
G18: 15
G19: 16
G20: 17
G21: 18
G22: 19
G23: 20
G24: 21
G25: 22
G26: 23
G27: 24
G28: 25
G29: 26
G30: 27
G31: 28
G32: 29
G33: 30
G34: 31
G35: 32
G36: 33
G37: 34
G38: 35
G39: 36
G40: 37
G41: 38
G42: 39
G43: 40
G44: 41
G45: 42
G46: 43
G47: 44
G48: 45
G49: 46
G50: 47
G51: 48
G52: 49
G53: 50
G54: 51
G55: 52
G56: 53
G57: 54
G58: 55
G59: 56
G60: 57
G61: 58
G62: 59
G63: 60
G64: 61
G65: 62
G66: 63
G67: 64
G68: 65
G69: 66
G70: 67
G71: 68
G72: 69
G73: 70
G74: 71
G75: 72
G76: 73
G77: 74
G78: 75
G79: 76
G80: 77
G81: 78
G82: 79
G83: 80
G84: 81
G85: 82
G86: 83
G87: 84
G88: 85
G89: 86
G90: 87
G91: 88
G92: 89
G93: 90
G94: 91
G95: 92
G96: 93
G97: 94
G98: 95
G99: 96
G100: 97
G101: 98
G102: 99
G103: 100
G104: 101
G105: 102
G106: 103
G107: 104
G108: 105
G109: 106
G110: 107
G111: 108
G112: 109
G113: 110
G114: 111
G115: 112
G116: 113
G117: 114
G118: 115
G119: 116
G120: 117
G121: 118
G122: 119
G123: 120
G124: 121
G125: 122
G126: 123
G127: 124
G128: 125
G129: 126
G130: 127
G131: 128
G132: 129
G133: 130
G134: 131
G135: 132
G136: 133
G137: 134
G138: 135
G139: 136
G140: 137
G141: 138
G142: 139
G143: 140
G144: 141
G145: 142
G146: 143
G147: 144
G148: 145
G149: 146
G150: 147
G151: 148
G152: 149
G153: 150
G154: 151
G155: 152
G156: 153
G157: 154
G158: 155
G159: 156
G160: 157
G161: 158
G162: 159
G163: 160
G164: 161
G165: 162
G166: 163
G167: 164
G168: 165
G169: 166
G170: 167
G171: 168
G172: 169
G173: 170
G174: 171
G175: 172
G176: 173
G177: 174
G178: 175
G179: 176
G180: 177
G181: 178
G182: 179
G183: 180
G184: 181
G185: 182
G186: 183
G187: 184
G188: 185
G189: 186
G190: 187
G191: 188
G192: 189
G193: 190
G194: 191
G195: 192
G196: 193
G197: 194
G198: 195
G199: 196
G200: 197
G201: 198
... 301 more rows

Sheet Permit
F2: Busby Quarter Horses & Tanner Equine
A3: Futurity | B3: Der | C3: HS | D3: Age Inct. | E3: Open C/O | F3: YOU | G3: Draw | H3: Rider Name | I3: Horse Name | J3: Pen | K3: Time | L3: Final Time | M3: Placing | N3: Money Earned | P3: D Placing | R3: Split
E4: X | G4: 7 | H4: Natalie Zuccone | I4: Technistones | K4: 15.775 | M4: 1st | N4: 406 | P4: 1D
D5: A | E5: X | G5: 10 | H5: Mindy Holloway | I5: Sweetmovinfirewater | K5: 16.254 | M5: 2nd | N5: 336 | P5: 2D | R5: 0.5
E6: X | G6: 11 | H6: Riley Fountain | I6: Royal Dame Ta Fame | K6: 16.435 | M6: 3rd | N6: 266 | P6: 3D | R6: 0.5
E7: X | G7: 13 | H7: Savannah Hayes | I7: Ulitmate Barley | K7: 16.512 | M7: 4th | N7: 196 | P7: 4D | R7: 0.5
G8: 2 | H8: Tatum Nelson | I8: JL Pebbles | K8: 16.566 | M8: 5th | N8: 126 | P8: 5D | R8: 0.5
D9: A | E9: X | G9: 1 | H9: Molly Pritchard | I9: Eye For Cadillacs | K9: 16.679 | M9: 6th | N9: 70
E10: X | G10: 5 | H10: Brooke Andrews | I10: Whenthetrumpetsounds | K10: 16.787 | P10: # Entered
E11: X | G11: 15 | H11: Shelly Lilley | I11: WinYoBuxOnAFlit | K11: 16.811 | P11: =COUNTA(H4:H503) -> 18
E12: X | G12: 3 | H12: Jetti Lorenz | I12: Moses | K12: 16.863
G13: 16 | H13: Natasha Gray | I13: Dirty Sanjo | K13: 16.907 | P13: # Ran
D14: A | E14: X | G14: 4 | H14: Mechelle Tyler | I14: Kissesforcaris | K14: 16.979 | P14: =COUNTA(K4:K503) -> 18
E15: X | G15: 18 | H15: Sydnee Carter | I15: Frenchmans Royal | K15: 17.014
D16: A | E16: X | G16: 12 | H16: Lindsey Stevens | I16: JM I Got Faith | K16: 17.061 | P16: # Left
A17: X | D17: A | E17: X | G17: 14 | H17: Stevie Perkins | I17: A Fun Frenchman | K17: 17.391 | P17: =$P$11-$P$14 -> 0
E18: X | G18: 6 | H18: Delaney Siebert | I18: Guys Classy Colours | K18: nt16.531
E19: X | G19: 8 | H19: Tristan Parrish | I19: Happy N Famous | K19: nt16.616
E20: X | G20: 9 | H20: Catherine Murray | I20: Cinnamon On Top | K20: nt16.680
C21: X | D21: A | E21: X | G21: 17 | H21: Keley Bissett | I21: Diamond Bar Flit | K21: nt17.328
G22: 19
G23: 20
G24: 21
G25: 22
G26: 23
G27: 23
G28: 24
G29: 25
G30: 26
G31: 27
G32: 28
G33: 29
G34: 30
G35: 31
G36: 32
G37: 33
G38: 34
G39: 35
G40: 36
G41: 37
G42: 38
G43: 39
G44: 40
G45: 41
G46: 42
G47: 43
G48: 44
G49: 45
G50: 46
G51: 47
G52: 48
G53: 49
G54: 50
G55: 51
G56: 52
G57: 53
G58: 54
G59: 55
G60: 56
G61: 57
G62: 58
G63: 59
G64: 60
G65: 61
G66: 62
G67: 63
G68: 64
G69: 65
G70: 66
G71: 67
G72: 68
G73: 69
G74: 70
G75: 71
G76: 72
G77: 73
G78: 74
G79: 75
G80: 76
G81: 77
G82: 78
G83: 79
G84: 80
G85: 81
G86: 82
G87: 83
G88: 84
G89: 85
G90: 86
G91: 87
G92: 88
G93: 89
G94: 90
G95: 91
G96: 92
G97: 93
G98: 94
G99: 95
G100: 96
G101: 97
G102: 98
G103: 99
G104: 100
G105: 101
G106: 102
G107: 103
G108: 104
G109: 105
G110: 106
G111: 107
G112: 108
G113: 109
G114: 110
G115: 111
G116: 112
G117: 113
G118: 114
G119: 115
G120: 116
G121: 117
G122: 118
G123: 119
G124: 120
G125: 121
G126: 122
G127: 123
G128: 124
G129: 125
G130: 126
G131: 127
G132: 128
G133: 129
G134: 130
G135: 131
G136: 132
G137: 133
G138: 134
G139: 135
G140: 136
G141: 137
G142: 138
G143: 139
G144: 140
G145: 141
G146: 142
G147: 143
G148: 144
G149: 145
G150: 146
G151: 147
G152: 148
G153: 149
G154: 150
G155: 151
G156: 152
G157: 153
G158: 154
G159: 155
G160: 156
G161: 157
G162: 158
G163: 159
G164: 160
G165: 161
G166: 162
G167: 163
G168: 164
G169: 165
G170: 166
G171: 167
G172: 168
G173: 169
G174: 170
G175: 171
G176: 172
G177: 173
G178: 174
G179: 175
G180: 176
G181: 177
G182: 178
G183: 179
G184: 180
G185: 181
G186: 182
G187: 183
G188: 184
G189: 185
G190: 186
G191: 187
G192: 188
G193: 189
G194: 190
G195: 191
G196: 192
G197: 193
G198: 194
G199: 195
G200: 196
G201: 197
... 302 more rows

Sheet Open
F2: Busby Quarter Horses & Tanner Equine
A3: Futurity | B3: Der | C3: HS | D3: Age Inct. | E3: Open C/O | F3: YOU | G3: Draw | H3: Rider Name | I3: Horse Name | J3: Pen | K3: Time | L3: Final Time | M3: Placing | N3: Money Earned | P3: D Placing | R3: Split
D4: A | E4: X | G4: 10 | H4: Stephanie Fryar | I4: Some Streakin French | K4: 15.655 | M4: 1D 1st | N4: 912.96 | P4: 1D
C5: X | G5: 24 | H5: Jimmie Smith | I5: Lever Action | K5: 15.688 | M5: 1D 2nd | N5: 760.8 | P5: 2D | R5: 0.5
A6: X | G6: 33 | H6: Stevi Hillman | I6: DTF Texas Moon | K6: 15.704 | M6: 1D 3rd | N6: 646.68 | P6: 3D | R6: 0.5
C7: X | D7: A | E7: X | G7: 3 | H7: Jimmie Smith | I7: Marthas Bullion | K7: 15.709 | M7: 1D 4th | N7: 494.52 | P7: 4D | R7: 0.5
E8: X | G8: 7 | H8: Natalie Zuccone | I8: Technistones | K8: 15.775 | M8: 1D 5th | N8: 380.4 | P8: 5D | R8: 0.5
D9: S | E9: X | G9: 1 | H9: Tammy Fisher | I9: A Valiant Nicky | K9: 15.848 | M9: 1D 6th | N9: 266.28
D10: A | G10: 53 | H10: Stephanie Fryar | I10: The Red Maserati | K10: 15.876 | M10: 1D 7th | N10: 190.2 | P10: # Entered
G11: 122 | H11: Lacey Harmon | I11: Chocolate Valentini | K11: 15.899 | M11: 1D 8th | N11: 152.16 | P11: =COUNTA(H4:H501) -> 280
G12: 181 | H12: Tyra Kane | I12: Runnin Jetolena | K12: 15.902
G13: 143 | H13: Josi St-Cyr | I13: Cash | K13: 15.924 | P13: # Ran
A14: X | C14: X | D14: A | G14: 23 | H14: Kylee Scribner | I14: Firewater Cartel | K14: 15.949 | P14: =COUNTA(K4:K501) -> 280
D15: A | G15: 114 | H15: Brian Ramirez | I15: Holly | K15: 16.01
A16: X | G16: 97 | H16: Krista Whitley | I16: Fabulace Fame | K16: 16.018 | P16: # Left
C17: X | D17: A | G17: 131 | H17: Lauren Whitmire | I17: Fame Rox | K17: 16.02 | P17: =$P$11-$P$14 -> 0
D18: S | E18: X | G18: 8 | H18: Martha Smith | I18: Firewatermakemehappy | K18: 16.039
D19: S | E19: X | G19: 4 | H19: Jenny Zant | I19: Raise Me Ta Fame | K19: 16.044
D20: A | G20: 12 | H20: Rylee Leach | I20: NMB CHestersLilBunny | K20: 16.057
E21: X | G21: 6 | H21: Becky Dillard | I21: Wow Shes Hot | K21: 16.076
E22: X | F22: X | G22: 99 | H22: Hadley Durfey | I22: Delightful Brownies | K22: 16.112
G23: 199 | H23: Maddy Dickens | K23: 16.121
A24: X | D24: S | G24: 67 | H24: Ginger Billingsley | I24: Alljokesaside | K24: 16.124
B25: X | D25: A | G25: 62 | H25: Lauren Whitmire | I25: Down Dash Anytime | K25: 16.127
D26: A | G26: 150 | H26: Jennifer Cullen | I26: HLC Pretty Lil Sugar | K26: 16.133
C27: X | G27: 106 | H27: Tami Semas | I27: Guys Drama Queen | K27: 16.138
G28: 214 | H28: Darcie Moody | I28: Pocket Full of Candy | K28: 16.159 | M28: 2D 1st | N28: 760.8
G29: 147 | H29: Shannon Pearson | I29: Reds Roany Pony | K29: 16.167 | M29: 2D 2nd | N29: 634
G30: 243 | H30: Maddy Dickens | K30: 16.181 | M30: 2D 3rd | N30: 538.9
G31: 194 | H31: Dawn Fryar | I31: Special Bid of Frost | K31: 16.186 | M31: 2D 4th | N31: 412.1
A32: X | G32: 41 | H32: Andrea Cline | I32: Ladys Pink Cash | K32: 16.193 | M32: 2D 5th | N32: 317
G33: 55 | H33: Jimmie Smith | I33: Traffic Kat | K33: 16.197 | M33: 2D 6th | N33: 221.9
D34: A | G34: 229 | H34: Shawn Martinez | I34: Six Shots Firewater | K34: 16.198 | M34: 2D 7th | N34: 158.5
B35: X | D35: A | G35: 31 | H35: Jennifer Sharp | I35: Calfee Legend | K35: 16.206 | M35: 2D 8th | N35: 126.8
G36: 60 | H36: Jennifer Sharp | I36: Designed By Slick | K36: 16.21
G37: 70 | H37: Andrea Cline | I37: Blurry Bug Leo | K37: 16.215
G38: 128 | H38: Cassidy Champlin | I38: Casadys Cash N Fame | K38: 16.243
G39: 18 | H39: Kelly Bruner | I39: LLP Shadreck | K39: 16.247
D40: A | E40: X | G40: 10 | H40: Mindy Holloway | I40: Sweetmovinfirewater | K40: 16.254
D41: A | G41: 13 | H41: Victoria Proctor | I41: LK Sheza Hayday | K41: 16.255
G42: 191 | H42: Cranna Roberts | I42: Ronnie | K42: 16.267
D43: A | G43: 101 | H43: Laine Whitmire | I43: Bullseye Bullion | K43: 16.268
G44: 144 | H44: Paige Dawson | I44: Im A Famous Firefly | K44: 16.268
D45: S | G45: 126 | H45: Tammy Rokus | I45: Mitey Confederate | K45: 16.282
A46: X | G46: 81 | H46: Jimmie Smith | I46: Guys Ima Bunny Cat | K46: 16.289
D47: A | G47: 26 | H47: Mindy Holloway | I47: Sadie | K47: 16.289
G48: 65 | H48: Krista Whitley | I48: Frenchmans Splash | K48: 16.31
D49: S | G49: 35 | H49: Tammy Fisher | I49: Bogies Quest For Fame | K49: 16.311
A50: X | D50: S | G50: 9 | H50: Jolene Jones | I50: Peppys StreakOf Fame | K50: 16.316
B51: X | D51: A | G51: 159 | H51: Emily Becker | I51: Mr Elegant Shawnee | K51: 16.326
G52: 51 | H52: Wendy Weems | I52: Brick | K52: 16.334
G53: 104 | H53: Hannah Hertel | I53: Lenasdashtavictory | K53: 16.335
G54: 32 | H54: Courtney Worthington | I54: CM Bubblin Dynamite | K54: 16.339
D55: A | G55: 56 | H55: Charlotte Overton | I55: Fooster | K55: 16.344
G56: 224 | H56: Aubrie Copenhaver | I56: Wimpys Boomin Frost | K56: 16.346
A57: X | G57: 69 | H57: Caroline Boucher | I57: KN Snap Back | K57: 16.37
G58: 219 | H58: Maddy Dickens | K58: 16.372
D59: S | G59: 231 | H59: Chris Boyer | I59: Unzippinlikastreaker | K59: 16.377
G60: 77 | H60: Lacey Harmon | I60: Mended Heart | K60: 16.392
D61: A | G61: 107 | H61: Kelly Allen | I61: Miss JB 149 | K61: 16.409
G62: 34 | H62: Brandi Zimmer | I62: ROH Docslil Rosie | K62: 16.412 | L62: 16.415
D63: S | G63: 137 | H63: Johnell Ray | I63: Smooth Your Jets | K63: 16.414
B64: X | G64: 84 | H64: Kyra Boling | I64: Teninas Hayday | K64: 16.416
D65: A | G65: 233 | H65: Jennifer Abbott | I65: Wendell Jackson | K65: 16.421
G66: 138 | H66: Krista Whitley | I66: Plain Jane Bully | K66: 16.43
E67: X | G67: 11 | H67: Riley Fountain | I67: Royal Dame Ta Fame | K67: 16.435
D68: S | G68: 235 | H68: Jo Kirby | I68: Heavenly Joak | K68: 16.446
G69: 94 | H69: Wendy Weems | I69: Goin Slo | K69: 16.452
G70: 118 | H70: Kari Brough | I70: Frenchmantwistedfame | K70: 16.464
G71: 212 | H71: Kiley Dalchow | I71: Vegas First Snow | K71: 16.478
G72: 155 | H72: Lauren Merica | I72: GOGO Romeo | K72: 16.48
E73: X | G73: 13 | H73: Savannah Hayes | I73: Ulitmate Barley | K73: 16.512
G74: 146 | H74: Jill Crotta | I74: Lightening Gold Reign | K74: 16.517
B75: X | G75: 160 | H75: Brandi Felder | I75: Graves Leavin Tuscon | K75: 16.526
G76: 184 | H76: Sara Redden | I76: Ocho | K76: 16.533
D77: S | G77: 10 | H77: Lisa Wernli | I77: Flashs Fine Effort | K77: 16.557
G78: 213 | H78: Timber Allenbrand | I78: Guys Merridoc Girl | K78: 16.558
A79: X | D79: A | G79: 153 | H79: Kelly Allen | I79: Miss JB 165 | K79: 16.56
E80: X | F80: X | G80: 133 | H80: Hadley Durfey | I80: One Smooth Kelly | K80: 16.565
G81: 222 | H81: Dakota Danley | I81: Eddie BJ | J81: Eddie BJ | K81: 16.574
D82: A | G82: 117 | H82: Jennifer Cullen | I82: Chasin Annies Fame | K82: 16.58
A83: X | G83: 72 | H83: Jade Crago | I83: High Road Ta Fame | K83: 16.589
G84: 241 | H84: Timber Allenbrand | I84: AztecsDont Wear Socks | K84: 16.589
E85: X | G85: 7 | H85: Casey Hammons | I85: BH Trip Ta Fame | K85: 16.592
A86: X | D86: A | G86: 27 | H86: Stephanie Fryar | I86: Can I Get A Hallelujah | K86: 16.597
D87: S | G87: 169 | H87: Tammy Rokus | I87: Rugged Frenchman | K87: 16.618
G88: 71 | H88: Hollie Sirman | I88: Easter Bunny Special | K88: 16.627
G89: 58 | H89: Becky Dillard | I89: Shesa Hot Loop | K89: 16.642
D90: A | G90: 142 | H90: Laine Whitmire | I90: Ms Carrie Lou | K90: 16.646
A91: X | G91: 76 | H91: Alexi Schaapveld | I91: Straight Up Smooth | K91: 16.648
G92: 105 | H92: Tori Volk | I92: CN Holy Cow | K92: 16.648
G93: 196 | H93: Lisa Stafford | K93: 16.658 | M93: 3D 1st | N93: 608.64
B94: X | G94: 195 | H94: Cassidy Champlin | I94: DG Excuse My French | K94: 16.66 | M94: 3D 2nd | N94: 507.2
A95: X | G95: 102 | H95: Caroline Boucher | I95: Jet to the Sun | K95: 16.67 | M95: 3D 3rd/4th | N95: 381
E96: X | G96: 5 | H96: Courtney Worthington | I96: CM Bubblin Barbie | K96: 16.67 | M96: 3D 3rd/4th | N96: 381
G97: 68 | H97: Holly Pritchard | I97: Bogies French Moon | K97: 16.678 | M97: 3D 5th | N97: 253.6
D98: A | E98: X | G98: 1 | H98: Molly Pritchard | I98: Eye For Cadillacs | K98: 16.679 | M98: 3D 6th | N98: 177.52
D99: A | G99: 173 | H99: Mary McLiney | I99: Banking Ta Fame | K99: 16.682 | M99: 3D 7th/8th | N99: 114
D100: S | G100: 172 | H100: Chris Boyer | I100: AG Johnny Fame | K100: 16.682 | M100: 3D 7th/8th | N100: 114
G101: 116 | H101: Lauren Merica | I101: Rhetas Rheta | K101: 16.7
G102: 215 | H102: Ella McCoy | I102: Youcandriforfly | K102: 16.708
G103: 201 | H103: Sara Reed | K103: 16.718
G104: 6 | H104: Anisa Coates | I104: Blazin Nike | K104: 16.724
G105: 92 | H105: Raley Zebrauskas | I105: Shortys Dualinbadger | K105: 16.724
G106: 7 | H106: Sydney Swatsell | I106: Smalls | K106: 16.73
G107: 203 | H107: Cindy Stone | I107: Super Sonic Corona | K107: 16.73
G108: 230 | H108: Kay Wyatt | I108: Money | K108: 16.733
G109: 197 | H109: Lauren Merica | I109: Jess Imagine That | K109: 16.739
D110: A | G110: 11 | H110: Cassidy Rabb | I110: VF Coup Fulla Coins | K110: 16.74
D111: S | G111: 88 | H111: Tracie Schoenthal | I111: Gunsnfirewater | K111: 16.747
G112: 190 | H112: Kori Howard | I112: Mary D Bug | K112: 16.751
G113: 96 | H113: Terri Ford | I113: Injun Needs Cash | K113: 16.755
G114: 225 | H114: Madelyn Eddleman | I114: SE Mito Bug | K114: 16.765
G115: 242 | H115: Ella McCoy | I115: Knock Out Drag Out | K115: 16.782
G116: 52 | H116: Ashley Harvey | I116: World Famous Loise | K116: 16.783
E117: X | G117: 5 | H117: Brooke Andrews | I117: Whenthetrumpetsounds | K117: 16.787
G118: 247 | H118: Marissa Burger | I118: Flee | K118: 16.79
D119: S | G119: 236 | H119: Marlyn Bland | I119: Nicks Super Chance | K119: 16.791
E120: X | G120: 15 | H120: Shelly Lilley | I120: WinYoBuxOnAFlit | K120: 16.811
G121: 44 | H121: Sydney Swatsell | I121: Feature Me Firin | K121: 16.827
G122: 161 | H122: Gretchen Goedeken | I122: Spots In My Dreams | K122: 16.834
A123: X | D123: A | G123: 4 | H123: Blake Myers | I123: Luvondarocks | K123: 16.858
G124: 202 | H124: Kayla Vandenberge | I124: Wonders Red Hotrod | K124: 16.862
E125: X | G125: 3 | H125: Jetti Lorenz | I125: Moses | K125: 16.863
G126: 154 | H126: Kari Brough | I126: RB Dash Ta Bar | K126: 16.866
D127: S | G127: 166 | H127: Kathy Vasquez | I127: Sail On Ta Fame | K127: 16.876
G128: 45 | H128: Samantha Grimsley | I128: Miss Daisy Mae | K128: 16.885
A129: X | G129: 73 | H129: Olivier Pelletier | I129: VF Walnut Pie | K129: 16.9
D130: A | G130: 113 | H130: Tiffany Durham | I130: Dashin Luke Perry | K130: 16.913
D131: A | G131: 42 | H131: Blake Myers | I131: Shawne Wampum | K131: 16.924
D132: A | G132: 163 | H132: Lauren Whitmire | I132: WR Famous Amigo | K132: 16.93
D133: S | G133: 46 | H133: Jolene Jones | I133: Capone | K133: 16.937
G134: 48 | H134: Molly Pritchard | I134: Wyatt | K134: 16.938
E135: X | F135: X | G135: 75 | H135: Stormi Branch | I135: Demon | K135: 16.94
D136: A | E136: X | G136: 4 | H136: Mechelle Tyler | I136: Kissesforcaris | K136: 16.979
A137: X | G137: 156 | H137: Tillar Murray | I137: MV Famous Margarita | K137: 16.981
D138: A | G138: 246 | H138: Tyler Vandermeer | I138: Moon Dreaming | K138: 16.986
D139: A | G139: 5 | H139: Kylena Hager | I139: Bar B Firewatersteel | K139: 16.997
G140: 93 | H140: Lisa Jo Velliquette | I140: Namgis D 44 | K140: 16.998
E141: X | G141: 18 | H141: Sydnee Carter | I141: Frenchmans Royal | K141: 17.014
F142: X | G142: 205 | H142: Ainsley Reeves | I142: Paige Me Im Radical | K142: 17.028
D143: A | G143: 218 | H143: Tiffany Durham | I143: Colonels Kerosene | K143: 17.035
D144: A | E144: X | G144: 12 | H144: Lindsey Stevens | I144: JM I Got Faith | K144: 17.061
G145: 109 | H145: Gretchen Goedeken | I145: Fine Whatever | K145: 17.061
D146: A | G146: 8 | H146: Jesse Budd | I146: Flicker Nic | K146: 17.079
G147: 87 | H147: Hanna Trimber | I147: Ivory Candy | K147: 17.106
D148: A | G148: 86 | H148: Katie Kapanick | I148: Pistol Packin Lark | K148: 17.108
G149: 234 | H149: Tori Morris | I149: Oscar | K149: 17.11
A150: X | D150: A | G150: 209 | H150: Randi Roberts | I150: Boom Slicka Boom | K150: 17.118
G151: 59 | H151: Anisa Coates | I151: Confederate Promise | K151: 17.123
G152: 182 | H152: Pattie Mackie | I152: Flitter Fuel Lad | K152: 17.128
G153: 1 | H153: Samantha Grimsley | I153: DFS Special Sambo | K153: 17.13
D154: A | G154: 14 | H154: Kylee Cook | I154: GHJag07 | K154: 17.139
G155: 110 | H155: Jill Crotta | I155: Canyon On The Go | K155: 17.164 | M155: 4D 1st | N155: 456.48
E156: X | F156: X | G156: 238 | H156: Jaidyn Ornelas | I156: Firstee | K156: 17.175 | M156: 4D 2nd | N156: 380.4
G157: 111 | H157: Jade Crago | I157: Nitros Next Topmodel | K157: 17.177 | M157: 4D 3rd | N157: 323.34
G158: 57 | H158: Jetti Lorenz | I158: The General | K158: 17.183 | M158: 4D 4th | N158: 247.26
F159: X | G159: 237 | H159: Taylor Hice | I159: Mac | K159: 17.238 | M159: 4D 5th | N159: 190.2
D160: S | G160: 2 | H160: Lisa Corey | I160: Beda Dream | K160: 17.251 | M160: 4D 6th | N160: 133.14
G161: 198 | H161: Gretchen Goedeken | I161: Pretty Bay Pony | K161: 17.257 | M161: 4D 7th | N161: 95.1
D162: A | G162: 15 | H162: Molly Pritchard | I162: Two Eyed Jet N Cash | K162: 17.27 | M162: 4D 8th | N162: 76.08
D163: A | G163: 220 | H163: Tyler Vandermeer | I163: Tiger Leos Money | K163: 17.282
G164: 66 | H164: Melissa Jones | I164: Threes Royal Derby | K164: 17.31
G165: 193 | H165: Marli Donegan | K165: 17.312
G166: 29 | H166: Georgia Morris | I166: Chasin A Paycheck | K166: 17.337
D167: S | G167: 49 | H167: Debbie Estes | I167: CSE Flit Bar Biankus | K167: 17.341
D168: A | G168: 83 | H168: Jennifer Sharp | I168: This Blondes Not Dun | K168: 17.348
D169: S | G169: 98 | H169: Jenny Alred | I169: Miss Fritz Blanton | K169: 17.358
G170: 82 | H170: Cheyenne Foster | I170: Mack Daddy | K170: 17.37
A171: X | D171: A | E171: X | G171: 14 | H171: Stevie Perkins | I171: A Fun Frenchman | K171: 17.391
G172: 43 | H172: Sharin Hall | I172: Famous Dash Ta Vegas | K172: 17.394
G173: 17 | H173: Shambrae Williams | I173: Sakems Frost | K173: 17.406
G174: 85 | H174: Ashley Harvey | I174: Hurricane Harvey | K174: 17.457
G175: 135 | H175: Lolita Long | I175: Streakin Summer Bugs | K175: 17.466
G176: 170 | H176: Leslie Hanson | I176: Silkie Jet Too | K176: 17.471
E177: X | F177: X | G177: 129 | H177: Mikayla Cearley | I177: TF Peppysmokensavage | K177: 17.478
G178: 125 | H178: Hollie Sirman | I178: Quick Boogie | K178: 17.522
G179: 74 | H179: Linda Hunter | I179: Paid Prescription | K179: 17.546
G180: 171 | H180: Lolita Long | I180: Jagerita Lita | K180: 17.555
G181: 89 | H181: Kyle Etchart | I181: Panfis Corona | K181: 17.593
F182: X | G182: 157 | H182: Madeleine Moll | I182: Vibrant Stylish Chic | K182: 17.621
G183: 228 | H183: Danica Hoppman | I183: Play It Boon | K183: 17.621
G184: 204 | H184: Carolyn Reeves | I184: CR French Fame | K184: 17.649
D185: S | G185: 61 | H185: Lisa Wernli | I185: Babe On The Run | K185: 17.658 | M185: 5D 1st | N185: 304.32
G186: 19 | H186: Kena Davies | I186: Getmeouttahere | K186: 17.678 | M186: 5D 2nd | N186: 253.6
G187: 183 | H187: Nicole Stageman | I187: Ms Texann Firewater | K187: 17.681 | M187: 5D 3rd | N187: 215.56
E188: X | F188: X | G188: 245 | H188: Madelyn Taylor | I188: Specks Boston Velvet | K188: 17.692 | M188: 5D 4th | N188: 164.84
G189: 54 | H189: Wyatt Paul | I189: Strait To Dallas By 6 | K189: 17.693 | M189: 5D 5th | N189: 126.8
G190: 108 | H190: Destinee Brown | I190: SR Bigtime Winner | K190: 17.697 | M190: 5D 6th | N190: 88.76
G191: 248 | H191: Logan Morgan | K191: 17.699 | M191: 5D 7th | N191: 63.4
G192: 251 | H192: Carole Lynn Newsome | I192: Pistol | K192: 17.704 | M192: 5D 8th | N192: 50.72
G193: 221 | H193: Logan Morgan | K193: 17.708
G194: 187 | H194: Jill Crotta | I194: Boons Miss Cash | K194: 17.709
D195: A | G195: 119 | H195: Reagan Jackson | I195: Red Hot Temptress | K195: 17.712
G196: 30 | H196: Delaney Siebert | I196: Streakin N Blazin | K196: 17.717
G197: 36 | H197: Shelley Morgan | I197: Carchy Cat | K197: 17.754
G198: 139 | H198: JoAnna Brown | I198: Sky High Dawn W5 | K198: 17.79
E199: X | F199: X | G199: 167 | H199: Maddy Myers | I199: LLP Streakin Loretta | K199: 17.832
G200: 186 | H200: Elena Kiehne | I200: Spec | K200: 17.858
F201: X | G201: 269 | H201: Gracie Kachuriak | K201: 17.862
... 300 more rows

Sheet Senior
A1: Futurity | B1: Der | D1: BBR | E1: Draw | F1: Rider Name | G1: Horse Name | H1: Time | I1: Placing | J1: Money Earned
C2: Senior | E2: 1 | F2: Tammy Fisher | G2: A Valiant Nicky | H2: 15.848 | I2: 1D 1st | J2: 109
E3: 2 | F3: Martha Smith | G3: Firewatermakemehappy | H3: 16.039 | I3: 1D 2nd | J3: 73
E4: 3 | F4: Jenny Zant | G4: Raise Me Ta Fame | H4: 16.044
E5: 4 | F5: Ginger Billingsley | G5: Alljokesaside | H5: 16.124
E6: 5 | F6: Tammy Rokus | G6: Mitey Confederate | H6: 16.282
E7: 6 | F7: Tammy Fisher | G7: Bogies Quest For Fame | H7: 16.311
E8: 7 | F8: Jolene Jones | G8: Peppys StreakOf Fame | H8: 16.316
E9: 8 | F9: Chris Boyer | G9: Unzippinlikastreaker | H9: 16.377 | I9: 2D 1st | J9: 94
E10: 9 | F10: Johnell Ray | G10: Smooth Your Jets | H10: 16.414 | I10: 2D 2nd | J10: 62
E11: 10 | F11: Jo Kirby | G11: Heavenly Joak | H11: 16.446
E12: 11 | F12: Lisa Wernli | G12: Flashs Fine Effort | H12: 16.557
E13: 12 | F13: Tammy Rokus | G13: Rugged Frenchman | H13: 16.618
E14: 13 | F14: Chris Boyer | G14: AG Johnny Fame | H14: 16.682
E15: 14 | F15: Tracie Schoenthal | G15: Gunsnfirewater | H15: 16.747
E16: 15 | F16: Marlyn Bland | G16: Nicks Super Chance | H16: 16.791
E17: 16 | F17: Kathy Vasquez | G17: Sail On Ta Fame | H17: 16.876 | I17: 3D 1st | J17: 62
E18: 17 | F18: Jolene Jones | G18: Capone | H18: 16.937 | I18: 3D 2nd | J18: 42
E19: 18 | F19: Lisa Corey | G19: Beda Dream | H19: 17.251
E20: 19 | F20: Debbie Estes | G20: CSE Flit Bar Biankus | H20: 17.341
E21: 20 | F21: Jenny Alred | G21: Miss Fritz Blanton | H21: 17.358 | I21: 4D 1st | J21: 47
E22: 21 | F22: Lisa Wernli | G22: Babe On The Run | H22: 17.658 | I22: 4D 2nd | J22: 31
E23: 22 | F23: Tammy Fisher | G23: OMG Im Really Smashed | H23: nt16.137
E24: 23 | F24: Martha Jordan | G24: MV Fury Of The Fame | H24: nt16.460
E25: 24 | F25: Glenda Barnett | G25: Bogies Royal Opey | H25: nt16.553
E26: 25 | F26: Jana Kurosky | G26: WinniesRed Kai | H26: nt16.740
E27: 26 | F27: Simone Elmore | G27: Badger A Conchadrift | H27: nt16.987
E28: 27
E29: 28
E30: 29
E31: 30
E32: 31
E33: 32
E34: 33
E35: 34
E36: 35
E37: 36
E38: 37
E39: 38
E40: 39
E41: 40
E42: 41
E43: 42
E44: 43
E45: 44
E46: 45
E47: 46
E48: 47
E49: 48
E50: 48
E51: 49
E52: 50
E53: 51
E54: 52
E55: 53
E56: 54
E57: 55
E58: 56
E59: 57
E60: 58
E61: 59
E62: 60
E63: 61
E64: 62
E65: 63
E66: 64
E67: 65
E68: 66
E69: 67
E70: 68
E71: 69
E72: 70
E73: 71
E74: 72
E75: 73
E76: 74
E77: 75
E78: 76
E79: 77
E80: 78
E81: 79
E82: 80
E83: 81
E84: 82
E85: 83
E86: 84
E87: 85
E88: 86
E89: 87
E90: 88
E91: 89
E92: 90
E93: 91
E94: 92
E95: 93
E96: 94
E97: 95
E98: 96
E99: 97
E100: 98
E101: 99
E102: 100
E103: 101
E104: 102
E105: 103
E106: 104
E107: 105
E108: 106
E109: 107
E110: 108
E111: 109
E112: 110
E113: 111
E114: 112
E115: 113
E116: 114
E117: 115
E118: 116
E119: 117
E120: 118
E121: 119
E122: 120
E123: 121
E124: 122
E125: 123
E126: 124
E127: 125
E128: 126
E129: 127
E130: 128
E131: 129
E132: 130
E133: 131
E134: 132
E135: 133
E136: 134
E137: 135
E138: 136
E139: 137
E140: 138
E141: 139
E142: 140
E143: 141
E144: 142
E145: 143
E146: 144
E147: 145
E148: 146
E149: 147
E150: 148
E151: 149
E152: 150
E153: 151
E154: 152
E155: 153
E156: 154
E157: 155
E158: 156
E159: 157
E160: 158
E161: 159
E162: 160
E163: 161
E164: 162
E165: 163
E166: 164
E167: 165
E168: 166
E169: 167
E170: 168
E171: 169
E172: 170
E173: 171
E174: 172
E175: 173
E176: 174
E177: 175
E178: 176
E179: 177
E180: 178
E181: 179
E182: 180
E183: 181
E184: 182
E185: 183
E186: 184
E187: 185
E188: 186
E189: 187
E190: 188
E191: 189
E192: 190
E193: 191
E194: 192
E195: 193
E196: 194
E197: 195
E198: 196
E199: 197
E200: 198
... 102 more rows

Sheet Adult
A1: Futurity | B1: Der | D1: BBR | E1: Draw | F1: Rider Name | G1: Horse Name | H1: Time | I1: Placing | J1: Money Earned
C2: Adult | E2: 1 | F2: Stephanie Fryar | G2: Some Streakin French | H2: 15.655 | I2: 1D 1st | J2: 196
E3: 2 | F3: Jimmie Smith | G3: Marthas Bullion | H3: 15.709 | I3: 1D 2nd | J3: 117.6
E4: 3 | F4: Stephanie Fryar | G4: The Red Maserati | H4: 15.876 | I4: 1D 3rd | J4: 78.4
E5: 4 | F5: Kylee Scribner | G5: Firewater Cartel | H5: 15.949
E6: 5 | F6: Brian Ramirez | G6: Holly | H6: 16.01
E7: 6 | F7: Lauren Whitmire | G7: Fame Rox | H7: 16.02
E8: 7 | F8: Rylee Leach | G8: NMB CHestersLilBunny | H8: 16.057
E9: 8 | F9: Lauren Whitmire | G9: Down Dash Anytime | H9: 16.127
E10: 9 | F10: Jennifer Cullen | G10: HLC Pretty Lil Sugar | H10: 16.133
E11: 10 | F11: Shawn Martinez | G11: Six Shots Firewater | H11: 16.198 | I11: 2D 1st | J11: 168
E12: 11 | F12: Jennifer Sharp | G12: Calfee Legend | H12: 16.206 | I12: 2D 2nd | J12: 100.8
E13: 12 | F13: Mindy Holloway | G13: Sweetmovinfirewater | H13: 16.254 | I13: 2D 3rd | J13: 67.2
E14: 13 | F14: Victoria Proctor | G14: LK Sheza Hayday | H14: 16.255
E15: 14 | F15: Laine Whitmire | G15: Bullseye Bullion | H15: 16.268
E16: 15 | F16: Mindy Holloway | G16: Sadie | H16: 16.289
E17: 16 | F17: Emily Becker | G17: Mr Elegant Shawnee | H17: 16.326
E18: 17 | F18: Charlotte Overton | G18: Fooster | H18: 16.344
E19: 18 | F19: Kelly Allen | G19: Miss JB 149 | H19: 16.409
E20: 19 | F20: Jennifer Abbott | G20: Wendell Jackson | H20: 16.421
E21: 20 | F21: Kelly Allen | G21: Miss JB 165 | H21: 16.56
E22: 21 | F22: Jennifer Cullen | G22: Chasin Annies Fame | H22: 16.58
E23: 22 | F23: Stephanie Fryar | G23: Can I Get A Hallelujah | H23: 16.597
E24: 23 | F24: Laine Whitmire | G24: Ms Carrie Lou | H24: 16.646
E25: 24 | F25: Molly Pritchard | G25: Eye For Cadillacs | H25: 16.679 | I25: 3D 1st | J25: 112
E26: 25 | F26: Mary McLiney | G26: Banking Ta Fame | H26: 16.682 | I26: 3D 2nd | J26: 67.2
E27: 26 | F27: Cassidy Rabb | G27: VF Coup Fulla Coins | H27: 16.74 | I27: 3D 3rd | J27: 44.8
E28: 27 | F28: Blake Myers | G28: Luvondarocks | H28: 16.858
E29: 28 | F29: Tiffany Durham | G29: Dashin Luke Perry | H29: 16.913
E30: 29 | F30: Blake Myers | G30: Shawne Wampum | H30: 16.924
E31: 30 | F31: Lauren Whitmire | G31: WR Famous Amigo | H31: 16.93
E32: 31 | F32: Mechelle Tyler | G32: Kissesforcaris | H32: 16.979
E33: 32 | F33: Tyler Vandermeer | G33: Moon Dreaming | H33: 16.986
E34: 33 | F34: Kylena Hager | G34: Bar B Firewatersteel | H34: 16.997
E35: 34 | F35: Tiffany Durham | G35: Colonels Kerosene | H35: 17.035
E36: 35 | F36: Lindsey Stevens | G36: JM I Got Faith | H36: 17.061
E37: 36 | F37: Jesse Budd | G37: Flicker Nic | H37: 17.079
E38: 37 | F38: Katie Kapanick | G38: Pistol Packin Lark | H38: 17.108
E39: 38 | F39: Randi Roberts | G39: Boom Slicka Boom | H39: 17.118
E40: 39 | F40: Kylee Cook | G40: GHJag07 | H40: 17.139
E41: 40 | F41: Molly Pritchard | G41: Two Eyed Jet N Cash | H41: 17.27 | I41: 4D 1st | J41: 84
E42: 41 | F42: Tyler Vandermeer | G42: Tiger Leos Money | H42: 17.282 | I42: 4D 2nd | J42: 50
E43: 42 | F43: Jennifer Sharp | G43: This Blondes Not Dun | H43: 17.348 | I43: 4D 3rd | J43: 34
E44: 43 | F44: Stevie Perkins | G44: A Fun Frenchman | H44: 17.391
E45: 44 | F45: Reagan Jackson | G45: Red Hot Temptress | H45: 17.712
E46: 45 | F46: Leslie Rickman | G46: Autumns Catty Mate | H46: 17.942
E47: 46 | F47: Charlotte Overton | G47: Metro | H47: 18.311
E48: 47 | F48: Reagan Jackson | G48: CPB Ryker | H48: 18.452
E49: 48 | F49: Stephanie Fryar | G49: RR LaJollas Roll | H49: nt
E50: 49 | F50: Tillar Murray | G50: JL Lava Roc | H50: nt15.972
E51: 50 | F51: SheaLynn McConnell | G51: Smooth N Heavenly | H51: nt16.024
E52: 51 | F52: Jennifer Sharp | G52: Mitos Cutter | H52: nt16.024
E53: 52 | F53: Stephanie Fryar | H53: nt16.407
E54: 53 | F54: Brian Ramirez | G54: Zee Coloured Jet | H54: nt16.576
E55: 54 | F55: Lauren Whitmire | G55: WR Famous Maverick | H55: nt16.813
E56: 55 | F56: Daisy Baird | G56: Teninas Smart Cookie | H56: nt16.946
E57: 56 | F57: Keley Bissett | G57: Diamond Bar Flit | H57: nt17.328
E58: 57 | F58: Kelly Allen | G58: Miss Regality | H58: nt17.666
E59: 58
E60: 59
E61: 60
E62: 61
E63: 62
E64: 63
E65: 64
E66: 65
E67: 66
E68: 67
E69: 68
E70: 69
E71: 70
E72: 71
E73: 72
E74: 73
E75: 74
E76: 75
E77: 76
E78: 77
E79: 78
E80: 79
E81: 80
E82: 81
E83: 82
E84: 83
E85: 84
E86: 85
E87: 86
E88: 87
E89: 88
E90: 89
E91: 90
E92: 91
E93: 92
E94: 93
E95: 94
E96: 95
E97: 96
E98: 97
E99: 98
E100: 99
E101: 100
E102: 101
E103: 102
E104: 103
E105: 104
E106: 105
E107: 106
E108: 107
E109: 108
E110: 109
E111: 110
E112: 111
E113: 112
E114: 113
E115: 114
E116: 115
E117: 116
E118: 117
E119: 118
E120: 119
E121: 120
E122: 121
E123: 122
E124: 123
E125: 124
E126: 125
E127: 126
E128: 127
E129: 128
E130: 129
E131: 130
E132: 131
E133: 132
E134: 133
E135: 134
E136: 135
E137: 136
E138: 137
E139: 138
E140: 139
E141: 140
E142: 141
E143: 142
E144: 143
E145: 144
E146: 145
E147: 146
E148: 147
E149: 148
E150: 149
E151: 150
E152: 151
E153: 152
E154: 153
E155: 154
E156: 155
E157: 156
E158: 157
E159: 158
E160: 159
E161: 160
E162: 161
E163: 162
E164: 163
E165: 164
E166: 165
E167: 166
E168: 167
E169: 168
E170: 169
E171: 170
E172: 171
E173: 172
E174: 173
E175: 174
E176: 175
E177: 176
E178: 177
E179: 178
E180: 179
E181: 180
E182: 181
E183: 182
E184: 183
E185: 184
E186: 185
E187: 186
E188: 187
E189: 188
E190: 189
E191: 190
E192: 191
E193: 192
E194: 193
E195: 194
E196: 195
E197: 196
E198: 197
E199: 198
E200: 199
... 101 more rows

Sheet Youth
A1: Futurity | B1: Der | D1: BBR | E1: Draw | F1: Rider Name | G1: Horse Name | H1: Time | I1: Placing | J1: Money Earned
C2: Youth | E2: 1 | F2: Hadley Durfey | G2: Delightful Brownies | H2: 16.112 | I2: 1D 1st | J2: 112
E3: 2 | F3: Hadley Durfey | G3: One Smooth Kelly | H3: 16.565 | I3: 1D 2nd | J3: 74
E4: 3 | F4: Stormi Branch | G4: Demon | H4: 16.94 | I4: 2D 1st | J4: 96
E5: 4 | F5: Ainsley Reeves | G5: Paige Me Im Radical | H5: 17.028 | I5: 2D 2nd | J5: 64
E6: 5 | F6: Jaidyn Ornelas | G6: Firstee | H6: 17.175 | I6: 3D 1st | J6: 64
E7: 6 | F7: Taylor Hice | G7: Mac | H7: 17.238 | I7: 3D 2nd | J7: 43
E8: 7 | F8: Mikayla Cearley | G8: TF Peppysmokensavage | H8: 17.478
E9: 8 | F9: Madeleine Moll | G9: Vibrant Stylish Chic | H9: 17.621 | I9: 4D 1st | J9: 48
E10: 9 | F10: Madelyn Taylor | G10: Specks Boston Velvet | H10: 17.692 | I10: 4D 2nd | J10: 32
E11: 10 | F11: Maddy Myers | G11: LLP Streakin Loretta | H11: 17.832
E12: 11 | F12: Gracie Kachuriak | H12: 17.862
E13: 12 | F13: Cienna Jacobsen | G13: LLFrenchmansCJ | H13: 18.109
E14: 13 | F14: Paige Bunero | G14: Tag | H14: 19.008
E15: 14 | F15: Jolie Smith | G15: Ms Hollywood Delight | H15: nt16.767
E16: 15 | F16: Lucas Do Valle | G16: Reba | H16: nt17.072
E17: 16 | F17: Lucas Do Valle | G17: Paperboy | H17: nt17.178
E18: 17 | F18: Madeleine Moll | G18: Gearm'Em Up Nic | H18: nt17.452
E19: 18 | F19: Cathleen Hodnett | G19: Fancy Freckles Misty | H19: nt17.588
E20: 19 | F20: Abygail Doyle | G20: Shiloh | H20: nt18.862
E21: 20
E22: 21
E23: 22
E24: 23
E25: 24
E26: 25
E27: 26
E28: 27
E29: 28
E30: 29
E31: 30
E32: 31
E33: 32
E34: 33
E35: 34
E36: 35
E37: 36
E38: 37
E39: 38
E40: 39
E41: 40
E42: 41
E43: 42
E44: 43
E45: 44
E46: 45
E47: 46
E48: 47
E49: 48
E50: 49
E51: 50
E52: 51
E53: 52
E54: 53
E55: 54
E56: 55
E57: 56
E58: 57
E59: 58
E60: 59
E61: 60
E62: 61
E63: 62
E64: 63
E65: 64
E66: 65
E67: 66
E68: 67
E69: 68
E70: 69
E71: 70
E72: 71
E73: 72
E74: 73
E75: 74
E76: 75
E77: 76
E78: 77
E79: 78
E80: 79
E81: 80
E82: 81
E83: 82
E84: 83
E85: 84
E86: 85
E87: 86
E88: 87
E89: 88
E90: 89
E91: 90
E92: 91
E93: 92
E94: 93
E95: 94
E96: 95
E97: 96
E98: 97
E99: 98
E100: 99
E101: 100
E102: 101
E103: 102
E104: 103
E105: 104
E106: 105
E107: 106
E108: 107
E109: 108
E110: 109
E111: 110
E112: 111
E113: 112
E114: 113
E115: 114
E116: 115
E117: 116
E118: 117
E119: 118
E120: 119
E121: 120
E122: 121
E123: 122
E124: 123
E125: 124
E126: 125
E127: 126
E128: 127
E129: 128
E130: 129
E131: 130
E132: 131
E133: 132
E134: 133
E135: 134
E136: 135
E137: 136
E138: 137
E139: 138
E140: 139
E141: 140
E142: 141
E143: 142
E144: 143
E145: 144
E146: 145
E147: 146
E148: 147
E149: 148
E150: 149
E151: 150
E152: 151
E153: 152
E154: 153
E155: 154
E156: 155
E157: 156
E158: 157
E159: 158
E160: 159
E161: 160
E162: 161
E163: 162
E164: 163
E165: 164
E166: 165
E167: 166
E168: 167
E169: 168
E170: 169
E171: 170
E172: 171
E173: 172
E174: 173
E175: 174
E176: 175
E177: 176
E178: 177
E179: 178
E180: 179
E181: 180
E182: 181
E183: 182
E184: 183
E185: 184
E186: 185
E187: 186
E188: 187
E189: 188
E190: 189
E191: 190
E192: 191
E193: 192
E194: 193
E195: 194
E196: 195
E197: 196
E198: 197
E199: 198
E200: 199
... 101 more rows

Sheet Derby
A1: Futurity | C1: Age Inct. | D1: BBR | E1: Draw | F1: Rider Name | G1: Horse Name | H1: Time | I1: Placing | J1: Money Earned
B2: Derby | E2: 1 | F2: Lauren Whitmire | G2: Down Dash Anytime | H2: 16.127 | I2: 1st | J2: 260
E3: 2 | F3: Jennifer Sharp | G3: Calfee Legend | H3: 16.206 | I3: 2rd | J3: 156
E4: 3 | F4: Emily Becker | G4: Mr Elegant Shawnee | H4: 16.326 | I4: 3rd | J4: 104
E5: 4 | F5: Kyra Boling | G5: Teninas Hayday | H5: 16.416
E6: 5 | F6: Brandi Felder | G6: Graves Leavin Tuscon | H6: 16.526
E7: 6 | F7: Cassidy Champlin | G7: DG Excuse My French | H7: 16.66
E8: 7 | F8: Pascale Sylvain | G8: Pff Streakin Miracle | H8: broken
E9: 8 | F9: SheaLynn McConnell | G9: Smooth N Heavenly | H9: nt16.024
E10: 9 | F10: Martha Jordan | G10: MV Fury Of The Fame | H10: nt16.460
E11: 10 | F11: Brian Ramirez | G11: Zee Coloured Jet | H11: nt16.576
E12: 11 | F12: Benjamin Beall | G12: Kiss Me Frenchman | H12: nt16.818
E13: 13 | F13: Cassidy Champlin | G13: Wood Bea French Girl | H13: nt17.041
E14: 14
E15: 15
E16: 16
E17: 17
E18: 18
E19: 19
E20: 20
E21: 21
E22: 22
E23: 23
E24: 24
E25: 25
E26: 26
E27: 27
E28: 28
E29: 29
E30: 30
E31: 31
E32: 32
E33: 33
E34: 34
E35: 35
E36: 36
E37: 37
E38: 38
E39: 39
E40: 40
E41: 41
E42: 42
E43: 43
E44: 44
E45: 45
E46: 46
E47: 47
E48: 48
E49: 49
E50: 50
E51: 51
E52: 52
E53: 53
E54: 54
E55: 55
E56: 56
E57: 57
E58: 58
E59: 59
E60: 60
E61: 61
E62: 62
E63: 63
E64: 64
E65: 65
E66: 66
E67: 67
E68: 68
E69: 69
E70: 70
E71: 71
E72: 72
E73: 73
E74: 74
E75: 75
E76: 76
E77: 77
E78: 78
E79: 79
E80: 80
E81: 81
E82: 82
E83: 83
E84: 84
E85: 85
E86: 86
E87: 87
E88: 88
E89: 89
E90: 90
E91: 91
E92: 92
E93: 93
E94: 94
E95: 95
E96: 96
E97: 97
E98: 98
E99: 99
E100: 100
E101: 101
E102: 102
E103: 103
E104: 104
E105: 105
E106: 106
E107: 107
E108: 108
E109: 109
E110: 110
E111: 111
E112: 112
E113: 113
E114: 114
E115: 115
E116: 116
E117: 117
E118: 118
E119: 119
E120: 120
E121: 121
E122: 122
E123: 123
E124: 124
E125: 125
E126: 126
E127: 127
E128: 128
E129: 129
E130: 130
E131: 131
E132: 132
E133: 133
E134: 134
E135: 135
E136: 136
E137: 137
E138: 138
E139: 139
E140: 140
E141: 141
E142: 142
E143: 143
E144: 144
E145: 145
E146: 146
E147: 147
E148: 148
E149: 149
E150: 150
E151: 151
E152: 152
E153: 153
E154: 154
E155: 155
E156: 156
E157: 157
E158: 158
E159: 159
E160: 160
E161: 161
E162: 162
E163: 163
E164: 164
E165: 165
E166: 166
E167: 167
E168: 168
E169: 169
E170: 170
E171: 171
E172: 172
E173: 173
E174: 174
E175: 175
E176: 176
E177: 177
E178: 178
E179: 179
E180: 180
E181: 181
E182: 182
E183: 183
E184: 184
E185: 185
E186: 186
E187: 187
E188: 188
E189: 189
E190: 190
E191: 191
E192: 192
E193: 193
E194: 194
E195: 195
E196: 196
E197: 197
E198: 198
E199: 199
E200: 200
... 100 more rows

Sheet Highstakes
B1: Der | C1: Age Inct. | D1: BBR | E1: Draw | F1: Rider Name | G1: Horse Name | H1: Time | I1: Placing | J1: Money Earned
A2: HS | E2: 1 | F2: Jimmie Smith | G2: Lever Action | H2: 15.688 | I2: 1st | J2: 384
E3: 2 | F3: Jimmie Smith | G3: Marthas Bullion | H3: 15.709 | I3: 2nd | J3: 256
E4: 3 | F4: Kylee Scribner | G4: Firewater Cartel | H4: 15.949
E5: 4 | F5: Lauren Whitmire | G5: Fame Rox | H5: 16.02
E6: 5 | F6: Tami Semas | G6: Guys Drama Queen | H6: 16.138
E7: 6 | F7: SheaLynn McConnell | G7: Smooth N Heavenly | H7: nt16.024
E8: 7 | F8: Jennifer Sharp | G8: Mitos Cutter | H8: nt16.024
E9: 8 | F9: Keley Bissett | G9: Diamond Bar Flit | H9: nt17.328
E10: 9
E11: 10
E12: 11
E13: 12
E14: 13
E15: 14
E16: 15
E17: 16
E18: 17
E19: 18
E20: 19
E21: 20
E22: 21
E23: 22
E24: 23
E25: 24
E26: 25
E27: 26
E28: 27
E29: 28
E30: 29
E31: 30
E32: 31
E33: 32
E34: 33
E35: 34
E36: 35
E37: 36
E38: 37
E39: 38
E40: 39
E41: 40
E42: 41
E43: 42
E44: 43
E45: 44
E46: 45
E47: 46
E48: 47
E49: 48
E50: 49
E51: 50
E52: 51
E53: 52
E54: 53
E55: 54
E56: 55
E57: 56
E58: 57
E59: 58
E60: 59
E61: 60
E62: 61
E63: 62
E64: 63
E65: 64
E66: 65
E67: 66
E68: 67
E69: 68
E70: 69
E71: 70
E72: 71
E73: 72
E74: 73
E75: 74
E76: 75
E77: 76
E78: 77
E79: 78
E80: 79
E81: 80
E82: 81
E83: 82
E84: 83
E85: 84
E86: 85
E87: 86
E88: 87
E89: 88
E90: 89
E91: 90
E92: 91
E93: 92
E94: 93
E95: 94
E96: 95
E97: 96
E98: 97
E99: 98
E100: 99
E101: 100
E102: 101
E103: 102
E104: 103
E105: 104
E106: 105
E107: 106
E108: 107
E109: 108
E110: 109
E111: 110
E112: 111
E113: 112
E114: 113
E115: 114
E116: 115
E117: 116
E118: 117
E119: 118
E120: 119
E121: 120
E122: 121
E123: 122
E124: 123
E125: 124
E126: 125
E127: 126
E128: 127
E129: 128
E130: 129
E131: 130
E132: 131
E133: 132
E134: 133
E135: 134
E136: 135
E137: 136
E138: 137
E139: 138
E140: 139
E141: 140
E142: 141
E143: 142
E144: 143
E145: 144
E146: 145
E147: 146
E148: 147
E149: 148
E150: 149
E151: 150
E152: 151
E153: 152
E154: 153
E155: 154
E156: 155
E157: 156
E158: 157
E159: 158
E160: 159
E161: 160
E162: 161
E163: 162
E164: 163
E165: 164
E166: 165
E167: 166
E168: 167
E169: 168
E170: 169
E171: 170
E172: 171
E173: 172
E174: 173
E175: 174
E176: 175
E177: 176
E178: 177
E179: 178
E180: 179
E181: 180
E182: 181
E183: 182
E184: 183
E185: 184
E186: 185
E187: 186
E188: 187
E189: 188
E190: 189
E191: 190
E192: 191
E193: 192
E194: 193
E195: 194
E196: 195
E197: 196
E198: 197
E199: 198
E200: 199
... 101 more rows

Sheet Futurity
B1: Der | C1: Age Inct. | D1: BBR | E1: Draw | F1: Rider Name | G1: Horse Name | H1: Time | I1: Placing | J1: Money Earned
A2: Futurity | E2: 1 | F2: Stevi Hillman | G2: DTF Texas Moon | H2: 15.704 | I2: 1D 1st | J2: 252
E3: 2 | F3: Kylee Scribner | G3: Firewater Cartel | H3: 15.949 | I3: 1D 2nd | J3: 151
E4: 3 | F4: Krista Whitley | G4: Fabulace Fame | H4: 16.018 | I4: 1D 3rd | J4: 101
E5: 4 | F5: Ginger Billingsley | G5: Alljokesaside | H5: 16.124
E6: 5 | F6: Andrea Cline | G6: Ladys Pink Cash | H6: 16.193
E7: 6 | F7: Jimmie Smith | G7: Guys Ima Bunny Cat | H7: 16.289 | I7: 2D 1st | J7: 168
E8: 7 | F8: Jolene Jones | G8: Peppys StreakOf Fame | H8: 16.316 | I8: 2D 2nd | J8: 101
E9: 8 | F9: Caroline Boucher | G9: KN Snap Back | H9: 16.37 | I9: 2D 3rd | J9: 67
E10: 9 | F10: Kelly Allen | G10: Miss JB 165 | H10: 16.56
E11: 10 | F11: Jade Crago | G11: High Road Ta Fame | H11: 16.589
E12: 11 | F12: Stephanie Fryar | G12: Can I Get A Hallelujah | H12: 16.597
E13: 12 | F13: Alexi Schaapveld | G13: Straight Up Smooth | H13: 16.648
E14: 13 | F14: Caroline Boucher | G14: Jet to the Sun | H14: 16.67
E15: 14 | F15: Blake Myers | G15: Luvondarocks | H15: 16.858
E16: 15 | F16: Olivier Pelletier | G16: VF Walnut Pie | H16: 16.9
E17: 16 | F17: Tillar Murray | G17: MV Famous Margarita | H17: 16.981
E18: 17 | F18: Randi Roberts | G18: Boom Slicka Boom | H18: 17.118
E19: 18 | F19: Stevie Perkins | G19: A Fun Frenchman | H19: 17.391
E20: 19 | F20: Caroline Boucher | G20: French Streaking | H20: nt16.102
E21: 20 | F21: Christi Durfey | G21: Jess Blazin Otoe | H21: nt17.090
E22: 21 | F22: Kelly Allen | G22: Miss Regality | H22: nt17.666
E23: 22
E24: 23
E25: 24
E26: 25
E27: 25
E28: 26
E29: 27
E30: 28
E31: 29
E32: 30
E33: 31
E34: 32
E35: 33
E36: 34
E37: 35
E38: 36
E39: 37
E40: 38
E41: 39
E42: 40
E43: 41
E44: 42
E45: 43
E46: 44
E47: 45
E48: 46
E49: 47
E50: 48
E51: 49
E52: 50
E53: 51
E54: 52
E55: 53
E56: 54
E57: 55
E58: 56
E59: 57
E60: 58
E61: 59
E62: 60
E63: 61
E64: 62
E65: 63
E66: 64
E67: 65
E68: 66
E69: 67
E70: 68
E71: 69
E72: 70
E73: 71
E74: 72
E75: 73
E76: 74
E77: 75
E78: 76
E79: 77
E80: 78
E81: 79
E82: 80
E83: 81
E84: 82
E85: 83
E86: 84
E87: 85
E88: 86
E89: 87
E90: 88
E91: 89
E92: 90
E93: 91
E94: 92
E95: 93
E96: 94
E97: 95
E98: 96
E99: 97
E100: 98
E101: 99
E102: 100
E103: 101
E104: 102
E105: 103
E106: 104
E107: 105
E108: 106
E109: 107
E110: 108
E111: 109
E112: 110
E113: 111
E114: 112
E115: 113
E116: 114
E117: 115
E118: 116
E119: 117
E120: 118
E121: 119
E122: 120
E123: 121
E124: 122
E125: 123
E126: 124
E127: 125
E128: 126
E129: 127
E130: 128
E131: 129
E132: 130
E133: 131
E134: 132
E135: 133
E136: 134
E137: 135
E138: 136
E139: 137
E140: 138
E141: 139
E142: 140
E143: 141
E144: 142
E145: 143
E146: 144
E147: 145
E148: 146
E149: 147
E150: 148
E151: 149
E152: 150
E153: 151
E154: 152
E155: 153
E156: 154
E157: 155
E158: 156
E159: 157
E160: 158
E161: 159
E162: 160
E163: 161
E164: 162
E165: 163
E166: 164
E167: 165
E168: 166
E169: 167
E170: 168
E171: 169
E172: 170
E173: 171
E174: 172
E175: 173
E176: 174
E177: 175
E178: 176
E179: 177
E180: 178
E181: 179
E182: 180
E183: 181
E184: 182
E185: 183
E186: 184
E187: 185
E188: 186
E189: 187
E190: 188
E191: 189
E192: 190
E193: 191
E194: 192
E195: 193
E196: 194
E197: 195
E198: 196
E199: 197
E200: 198
... 102 more rows

Sheet 12 & Under (hidden)
A1: Futurity | B1: Der | C1: Age Inct. | D1: R/O | E1: Draw | F1: Rider Name | G1: Horse Name | H1: Time | I1: Final Time | J1: Placing | K1: Money Earned
E33: 32
E34: 33
E35: 34
E36: 35
E37: 36
E38: 37
E39: 38
E40: 39
E41: 40
E42: 41
E43: 42
E44: 43
E45: 44
E46: 45
E47: 46
E48: 47
E49: 48
E50: 49
E51: 50
E52: 51
E53: 52
E54: 53
E55: 54
E56: 55
E57: 56
E58: 57
E59: 58
E60: 59
E61: 60
E62: 61
E63: 62
E64: 63
E65: 64
E66: 65
E67: 66
E68: 67
E69: 68
E70: 69
E71: 70
E72: 71
E73: 72
E74: 73
E75: 74
E76: 75
E77: 76
E78: 77
E79: 78
E80: 79
E81: 80
E82: 81
E83: 82
E84: 83
E85: 84
E86: 85
E87: 86
E88: 87
E89: 88
E90: 89
E91: 90
E92: 91
E93: 92
E94: 93
E95: 94
E96: 95
E97: 96
E98: 97
E99: 98
E100: 99
E101: 100
E102: 101
E103: 102
E104: 103
E105: 104
E106: 105
E107: 106
E108: 107
E109: 108
E110: 109
E111: 110
E112: 111
E113: 112
E114: 113
E115: 114
E116: 115
E117: 116
E118: 117
E119: 118
E120: 119
E121: 120
E122: 121
E123: 122
E124: 123
E125: 124
E126: 125
E127: 126
E128: 127
E129: 128
E130: 129
E131: 130
E132: 131
E133: 132
E134: 133
E135: 134
E136: 135
E137: 136
E138: 137
E139: 138
E140: 139
E141: 140
E142: 141
E143: 142
E144: 143
E145: 144
E146: 145
E147: 146
E148: 147
E149: 148
E150: 149
E151: 150
E152: 151
E153: 152
E154: 153
E155: 154
E156: 155
E157: 156
E158: 157
E159: 158
E160: 159
E161: 160
E162: 161
E163: 162
E164: 163
E165: 164
E166: 165
E167: 166
E168: 167
E169: 168
E170: 169
E171: 170
E172: 171
E173: 172
E174: 173
E175: 174
E176: 175
E177: 176
E178: 177
E179: 178
E180: 179
E181: 180
E182: 181
E183: 182
E184: 183
E185: 184
E186: 185
E187: 186
E188: 187
E189: 188
E190: 189
E191: 190
E192: 191
E193: 192
E194: 193
E195: 194
E196: 195
E197: 196
E198: 197
E199: 198
E200: 199
E201: 200
E202: 201
E203: 202
E204: 203
E205: 204
E206: 205
E207: 206
E208: 207
E209: 208
E210: 209
E211: 210
E212: 211
E213: 212
E214: 213
E215: 214
E216: 215
E217: 216
E218: 217
E219: 218
E220: 219
E221: 220
E222: 221
E223: 222
E224: 223
E225: 224
E226: 225
E227: 226
E228: 227
E229: 228
E230: 229
E231: 230
... 70 more rows

Sheet Future champs
A1: Draw | B1: Rider Name | C1: Horse Name | D1: Time | E1: Placing | F1: Money Earned
A2: 1 | B2: Bryson Rawson | C2: Mack | D2: 22.53 | E2: 2
A3: 2 | B3: Nora Jones | C3: Threes Royal Derby | D3: 22.969 | E3: 3
A4: 3 | B4: Gracie Kachuriak | C4: R/O to Youth | D4: 17.862 | E4: 1
A5: 4
A6: 5
A7: 6
A8: 7
A9: 8
A10: 9
A11: 10
A12: 11
A13: 12
A14: 13
A15: 14
A16: 15
A17: 16
A18: 17
A19: 18
A20: 19
A21: 20

Sheet Average
A1: Parker County Arena
A2: Open
A3: 4 Yr Fut | B3: 5 Yr Fut | C3: Der | D3: Age Inct. | E3: Am | F3: Carry | G3: T/C | H3: F/F | I3: Mem | J3: Nom | K3: Av | L3: BBR | M3: WPRA | N3: Draw | O3: Owner Name | P3: Rider Name | Q3: Horse Name | R3: Pen | S3: Time 1 | T3: Final Time 1 | U3: Pen | V3: Time 2 | W3: Final Time 2 | X3: Total Time | Y3: Average Time | Z3: Placing | AA3: Money Earned | AC3: D Placing | AE3: Split
N4: 1 | T4: =IF(OR(R4=5,R4=10, R4=15, R4="BP",R4="SCR"),"NT",S4) -> 0 | W4: =IF(OR(U4=5,U4=10, U4=15, U4="BP",U4="SCR"),"NT",V4) -> 0 | X4: =(T4+W4) -> 0 | Y4: =(T4+W4)/2 -> 0 | AC4: 1D
N5: 2 | T5: 0 | W5: 0 | X5: 0 | Y5: 0 | AC5: 2D | AD5: =$AD$4+$AE$5 -> 0.5 | AE5: 0.5
N6: 3 | T6: 0 | W6: 0 | X6: 0 | Y6: 0 | AC6: 3D | AD6: =$AD$5+$AE$6 -> 1 | AE6: 0.5
N7: 4 | T7: 0 | W7: 0 | X7: 0 | Y7: 0 | AC7: 4D | AD7: =$AD$6+$AE$7 -> 1.5 | AE7: 0.5
N8: 5 | T8: 0 | W8: 0 | X8: 0 | Y8: 0 | AC8: 5D | AD8: =$AD$7+$AE$8 -> 2 | AE8: 0.5
N9: 6 | T9: 0 | W9: 0 | X9: 0 | Y9: 0
N10: 7 | T10: 0 | W10: 0 | X10: 0 | Y10: 0 | AC10: # Entered
N11: 8 | T11: 0 | W11: 0 | X11: 0 | Y11: 0 | AC11: =COUNTA(P4:P503) -> 0
N12: 9 | T12: 0 | W12: 0 | X12: 0 | Y12: 0
N13: 10 | T13: 0 | W13: 0 | X13: 0 | Y13: 0
N14: 11 | T14: 0 | W14: 0 | X14: 0 | Y14: 0
N15: 12 | T15: 0 | W15: 0 | X15: 0 | Y15: 0
N16: 13 | T16: 0 | W16: 0 | X16: 0 | Y16: 0
N17: 14 | T17: =IF(OR(R17=5,R17=10, R17=15, R17="BP",R17="SCR"),"NT",S17) -> 0 | W17: =IF(OR(U17=5,U17=10, U17=15, U17="BP",U17="SCR"),"NT",V17) -> 0 | X17: =(T17+W17) -> 0 | Y17: =(T17+W17)/2 -> 0
N18: 15 | T18: 0 | W18: 0 | X18: 0 | Y18: 0
N19: 16 | T19: 0 | W19: 0 | X19: 0 | Y19: 0
N20: 17 | T20: 0 | W20: 0 | X20: 0 | Y20: 0
N21: 18 | T21: 0 | W21: 0 | X21: 0 | Y21: 0
N22: 19 | T22: 0 | W22: 0 | X22: 0 | Y22: 0
N23: 20 | T23: 0 | W23: 0 | X23: 0 | Y23: 0
N24: 21 | T24: 0 | W24: 0 | X24: 0 | Y24: 0
N25: 22 | T25: 0 | W25: 0 | X25: 0 | Y25: 0
N26: 23 | T26: 0 | W26: 0 | X26: 0 | Y26: 0
N27: 24 | T27: 0 | W27: 0 | X27: 0 | Y27: 0
N28: 25 | T28: 0 | W28: 0 | X28: 0 | Y28: 0
N29: 26 | T29: 0 | W29: 0 | X29: 0 | Y29: 0
N30: 27 | T30: 0 | W30: 0 | X30: 0 | Y30: 0
N31: 28 | T31: 0 | W31: 0 | X31: 0 | Y31: 0
N32: 29 | T32: 0 | W32: 0 | X32: 0 | Y32: 0
N33: 30 | T33: 0 | W33: 0 | X33: 0 | Y33: 0
N34: 31 | T34: 0 | W34: 0 | X34: 0 | Y34: 0
N35: 32 | T35: 0 | W35: 0 | X35: 0 | Y35: 0
N36: 33 | T36: 0 | W36: 0 | X36: 0 | Y36: 0
N37: 34 | T37: 0 | W37: 0 | X37: 0 | Y37: 0
N38: 35 | T38: 0 | W38: 0 | X38: 0 | Y38: 0
N39: 36 | T39: 0 | W39: 0 | X39: 0 | Y39: 0
N40: 37 | T40: 0 | W40: 0 | X40: 0 | Y40: 0
N41: 38 | T41: 0 | W41: 0 | X41: 0 | Y41: 0
N42: 39 | T42: 0 | W42: 0 | X42: 0 | Y42: 0
N43: 40 | T43: 0 | W43: 0 | X43: 0 | Y43: 0
N44: 41 | T44: 0 | W44: 0 | X44: 0 | Y44: 0
N45: 42 | T45: 0 | W45: 0 | X45: 0 | Y45: 0
N46: 43 | T46: 0 | W46: 0 | X46: 0 | Y46: 0
N47: 44 | T47: 0 | W47: 0 | X47: 0 | Y47: 0
N48: 45 | T48: 0 | W48: 0 | X48: 0 | Y48: 0
N49: 46 | T49: 0 | W49: 0 | X49: 0 | Y49: 0
N50: 47 | T50: 0 | W50: 0 | X50: 0 | Y50: 0
N51: 48 | T51: 0 | W51: 0 | X51: 0 | Y51: 0
N52: 49 | T52: 0 | W52: 0 | X52: 0 | Y52: 0
N53: 50 | T53: 0 | W53: 0 | X53: 0 | Y53: 0
N54: 51 | T54: 0 | W54: 0 | X54: 0 | Y54: 0
N55: 52 | T55: 0 | W55: 0 | X55: 0 | Y55: 0
N56: 53 | T56: 0 | W56: 0 | X56: 0 | Y56: 0
N57: 54 | T57: 0 | W57: 0 | X57: 0 | Y57: 0
N58: 55 | T58: 0 | W58: 0 | X58: 0 | Y58: 0
N59: 56 | T59: 0 | W59: 0 | X59: 0 | Y59: 0
N60: 57 | T60: 0 | W60: 0 | X60: 0 | Y60: 0
N61: 58 | T61: 0 | W61: 0 | X61: 0 | Y61: 0
N62: 59 | T62: 0 | W62: 0 | X62: 0 | Y62: 0
N63: 60 | T63: 0 | W63: 0 | X63: 0 | Y63: 0
N64: 61 | T64: 0 | W64: 0 | X64: 0 | Y64: 0
N65: 62 | T65: 0 | W65: 0 | X65: 0 | Y65: 0
N66: 63 | T66: 0 | W66: 0 | X66: 0 | Y66: 0
N67: 64 | T67: 0 | W67: 0 | X67: 0 | Y67: 0
N68: 65 | T68: 0 | W68: 0 | X68: 0 | Y68: 0
N69: 66 | T69: =IF(OR(R69=5,R69=10, R69=15, R69="BP",R69="SCR"),"NT",S69) -> 0 | W69: =IF(OR(U69=5,U69=10, U69=15, U69="BP",U69="SCR"),"NT",V69) -> 0 | X69: =(T69+W69) -> 0 | Y69: =(T69+W69)/2 -> 0
N70: 67 | T70: 0 | W70: 0 | X70: 0 | Y70: 0
N71: 68 | T71: 0 | W71: 0 | X71: 0 | Y71: 0
N72: 69 | T72: 0 | W72: 0 | X72: 0 | Y72: 0
N73: 70 | T73: 0 | W73: 0 | X73: 0 | Y73: 0
N74: 71 | T74: 0 | W74: 0 | X74: 0 | Y74: 0
N75: 72 | T75: 0 | W75: 0 | X75: 0 | Y75: 0
N76: 73 | T76: 0 | W76: 0 | X76: 0 | Y76: 0
N77: 74 | T77: 0 | W77: 0 | X77: 0 | Y77: 0
N78: 75 | T78: 0 | W78: 0 | X78: 0 | Y78: 0
N79: 76 | T79: 0 | W79: 0 | X79: 0 | Y79: 0
N80: 77 | T80: 0 | W80: 0 | X80: 0 | Y80: 0
N81: 78 | T81: 0 | W81: 0 | X81: 0 | Y81: 0
N82: 79 | T82: 0 | W82: 0 | X82: 0 | Y82: 0
N83: 80 | T83: 0 | W83: 0 | X83: 0 | Y83: 0
N84: 81 | T84: 0 | W84: 0 | X84: 0 | Y84: 0
N85: 82 | T85: 0 | W85: 0 | X85: 0 | Y85: 0
N86: 83 | T86: 0 | W86: 0 | X86: 0 | Y86: 0
N87: 84 | T87: 0 | W87: 0 | X87: 0 | Y87: 0
N88: 85 | T88: 0 | W88: 0 | X88: 0 | Y88: 0
N89: 86 | T89: 0 | W89: 0 | X89: 0 | Y89: 0
N90: 87 | T90: 0 | W90: 0 | X90: 0 | Y90: 0
N91: 88 | T91: 0 | W91: 0 | X91: 0 | Y91: 0
N92: 89 | T92: 0 | W92: 0 | X92: 0 | Y92: 0
N93: 90 | T93: 0 | W93: 0 | X93: 0 | Y93: 0
N94: 91 | T94: 0 | W94: 0 | X94: 0 | Y94: 0
N95: 92 | T95: 0 | W95: 0 | X95: 0 | Y95: 0
N96: 93 | T96: 0 | W96: 0 | X96: 0 | Y96: 0
N97: 94 | T97: 0 | W97: 0 | X97: 0 | Y97: 0
N98: 95 | T98: 0 | W98: 0 | X98: 0 | Y98: 0
N99: 96 | T99: 0 | W99: 0 | X99: 0 | Y99: 0
N100: 97 | T100: 0 | W100: 0 | X100: 0 | Y100: 0
N101: 98 | T101: 0 | W101: 0 | X101: 0 | Y101: 0
N102: 99 | T102: 0 | W102: 0 | X102: 0 | Y102: 0
N103: 100 | T103: 0 | W103: 0 | X103: 0 | Y103: 0
N104: 101 | T104: 0 | W104: 0 | X104: 0 | Y104: 0
N105: 102 | T105: 0 | W105: 0 | X105: 0 | Y105: 0
N106: 103 | T106: 0 | W106: 0 | X106: 0 | Y106: 0
N107: 104 | T107: 0 | W107: 0 | X107: 0 | Y107: 0
N108: 105 | T108: 0 | W108: 0 | X108: 0 | Y108: 0
N109: 106 | T109: 0 | W109: 0 | X109: 0 | Y109: 0
N110: 107 | T110: 0 | W110: 0 | X110: 0 | Y110: 0
N111: 108 | T111: 0 | W111: 0 | X111: 0 | Y111: 0
N112: 109 | T112: 0 | W112: 0 | X112: 0 | Y112: 0
N113: 110 | T113: 0 | W113: 0 | X113: 0 | Y113: 0
N114: 111 | T114: 0 | W114: 0 | X114: 0 | Y114: 0
N115: 112 | T115: 0 | W115: 0 | X115: 0 | Y115: 0
N116: 113 | T116: 0 | W116: 0 | X116: 0 | Y116: 0
N117: 114 | T117: 0 | W117: 0 | X117: 0 | Y117: 0
N118: 115 | T118: 0 | W118: 0 | X118: 0 | Y118: 0
N119: 116 | T119: 0 | W119: 0 | X119: 0 | Y119: 0
N120: 117 | T120: 0 | W120: 0 | X120: 0 | Y120: 0
N121: 118 | T121: 0 | W121: 0 | X121: 0 | Y121: 0
N122: 119 | T122: 0 | W122: 0 | X122: 0 | Y122: 0
N123: 120 | T123: 0 | W123: 0 | X123: 0 | Y123: 0
N124: 121 | T124: 0 | W124: 0 | X124: 0 | Y124: 0
N125: 122 | T125: 0 | W125: 0 | X125: 0 | Y125: 0
N126: 123 | T126: 0 | W126: 0 | X126: 0 | Y126: 0
N127: 124 | T127: 0 | W127: 0 | X127: 0 | Y127: 0
N128: 125 | T128: 0 | W128: 0 | X128: 0 | Y128: 0
N129: 126 | T129: 0 | W129: 0 | X129: 0 | Y129: 0
N130: 127 | T130: 0 | W130: 0 | X130: 0 | Y130: 0
N131: 128 | T131: 0 | W131: 0 | X131: 0 | Y131: 0
N132: 129 | T132: 0 | W132: 0 | X132: 0 | Y132: 0
N133: 130 | T133: =IF(OR(R133=5,R133=10, R133=15, R133="BP",R133="SCR"),"NT",S133) -> 0 | W133: =IF(OR(U133=5,U133=10, U133=15, U133="BP",U133="SCR"),"NT",V133) -> 0 | X133: =(T133+W133) -> 0 | Y133: =(T133+W133)/2 -> 0
N134: 131 | T134: 0 | W134: 0 | X134: 0 | Y134: 0
N135: 132 | T135: 0 | W135: 0 | X135: 0 | Y135: 0
N136: 133 | T136: 0 | W136: 0 | X136: 0 | Y136: 0
N137: 134 | T137: 0 | W137: 0 | X137: 0 | Y137: 0
N138: 135 | T138: 0 | W138: 0 | X138: 0 | Y138: 0
N139: 136 | T139: 0 | W139: 0 | X139: 0 | Y139: 0
N140: 137 | T140: 0 | W140: 0 | X140: 0 | Y140: 0
N141: 138 | T141: 0 | W141: 0 | X141: 0 | Y141: 0
N142: 139 | T142: 0 | W142: 0 | X142: 0 | Y142: 0
N143: 140 | T143: 0 | W143: 0 | X143: 0 | Y143: 0
N144: 141 | T144: 0 | W144: 0 | X144: 0 | Y144: 0
N145: 142 | T145: 0 | W145: 0 | X145: 0 | Y145: 0
N146: 143 | T146: 0 | W146: 0 | X146: 0 | Y146: 0
N147: 144 | T147: 0 | W147: 0 | X147: 0 | Y147: 0
N148: 145 | T148: 0 | W148: 0 | X148: 0 | Y148: 0
N149: 146 | T149: 0 | W149: 0 | X149: 0 | Y149: 0
N150: 147 | T150: 0 | W150: 0 | X150: 0 | Y150: 0
N151: 148 | T151: 0 | W151: 0 | X151: 0 | Y151: 0
N152: 149 | T152: 0 | W152: 0 | X152: 0 | Y152: 0
N153: 150 | T153: 0 | W153: 0 | X153: 0 | Y153: 0
N154: 151 | T154: 0 | W154: 0 | X154: 0 | Y154: 0
N155: 152 | T155: 0 | W155: 0 | X155: 0 | Y155: 0
N156: 153 | T156: 0 | W156: 0 | X156: 0 | Y156: 0
N157: 154 | T157: 0 | W157: 0 | X157: 0 | Y157: 0
N158: 155 | T158: 0 | W158: 0 | X158: 0 | Y158: 0
N159: 156 | T159: 0 | W159: 0 | X159: 0 | Y159: 0
N160: 157 | T160: 0 | W160: 0 | X160: 0 | Y160: 0
N161: 158 | T161: 0 | W161: 0 | X161: 0 | Y161: 0
N162: 159 | T162: 0 | W162: 0 | X162: 0 | Y162: 0
N163: 160 | T163: 0 | W163: 0 | X163: 0 | Y163: 0
N164: 161 | T164: 0 | W164: 0 | X164: 0 | Y164: 0
N165: 162 | T165: 0 | W165: 0 | X165: 0 | Y165: 0
N166: 163 | T166: 0 | W166: 0 | X166: 0 | Y166: 0
N167: 164 | T167: 0 | W167: 0 | X167: 0 | Y167: 0
N168: 165 | T168: 0 | W168: 0 | X168: 0 | Y168: 0
N169: 166 | T169: 0 | W169: 0 | X169: 0 | Y169: 0
N170: 167 | T170: 0 | W170: 0 | X170: 0 | Y170: 0
N171: 168 | T171: 0 | W171: 0 | X171: 0 | Y171: 0
N172: 169 | T172: 0 | W172: 0 | X172: 0 | Y172: 0
N173: 170 | T173: 0 | W173: 0 | X173: 0 | Y173: 0
N174: 171 | T174: 0 | W174: 0 | X174: 0 | Y174: 0
N175: 172 | T175: 0 | W175: 0 | X175: 0 | Y175: 0
N176: 173 | T176: 0 | W176: 0 | X176: 0 | Y176: 0
N177: 174 | T177: 0 | W177: 0 | X177: 0 | Y177: 0
N178: 175 | T178: 0 | W178: 0 | X178: 0 | Y178: 0
N179: 176 | T179: 0 | W179: 0 | X179: 0 | Y179: 0
N180: 177 | T180: 0 | W180: 0 | X180: 0 | Y180: 0
N181: 178 | T181: 0 | W181: 0 | X181: 0 | Y181: 0
N182: 179 | T182: 0 | W182: 0 | X182: 0 | Y182: 0
N183: 180 | T183: 0 | W183: 0 | X183: 0 | Y183: 0
N184: 181 | T184: 0 | W184: 0 | X184: 0 | Y184: 0
N185: 182 | T185: 0 | W185: 0 | X185: 0 | Y185: 0
N186: 183 | T186: 0 | W186: 0 | X186: 0 | Y186: 0
N187: 184 | T187: 0 | W187: 0 | X187: 0 | Y187: 0
N188: 185 | T188: 0 | W188: 0 | X188: 0 | Y188: 0
N189: 186 | T189: 0 | W189: 0 | X189: 0 | Y189: 0
N190: 187 | T190: 0 | W190: 0 | X190: 0 | Y190: 0
N191: 188 | T191: 0 | W191: 0 | X191: 0 | Y191: 0
N192: 189 | T192: 0 | W192: 0 | X192: 0 | Y192: 0
N193: 190 | T193: 0 | W193: 0 | X193: 0 | Y193: 0
N194: 191 | T194: 0 | W194: 0 | X194: 0 | Y194: 0
N195: 192 | T195: 0 | W195: 0 | X195: 0 | Y195: 0
N196: 193 | T196: 0 | W196: 0 | X196: 0 | Y196: 0
N197: 194 | T197: =IF(OR(R197=5,R197=10, R197=15, R197="BP",R197="SCR"),"NT",S197) -> 0 | W197: =IF(OR(U197=5,U197=10, U197=15, U197="BP",U197="SCR"),"NT",V197) -> 0 | X197: =(T197+W197) -> 0 | Y197: =(T197+W197)/2 -> 0
N198: 195 | T198: 0 | W198: 0 | X198: 0 | Y198: 0
N199: 196 | T199: 0 | W199: 0 | X199: 0 | Y199: 0
N200: 197 | T200: 0 | W200: 0 | X200: 0 | Y200: 0
... 303 more rows

Sheet BFA 2D Payout (hidden)
A1: BFA 2D Payout
A2: Entry Fee | B2: # Entries | C2: % Payback | D2: Added $ | E2: Total Payout | F2: Each Go
A3: 25 | B3: 19 | C3: 0.8 | D3: 200 | E3: =(A3*$C$3)*B3+D3 -> 580 | F3: 0.3
F4: =$E$3*$F$3 -> 174
A5: $5,000-7,500 Pays 5 Places 4 to 1D 1 to 2D
A6: Placings | B6: 1D | D6: 2D
A7: 1st | B7: =($F$4*$C$7) -> 57.42 | C7: 0.33 | D7: =$F$4*$E$7 -> 12.18 | E7: 0.07
A8: 2nd | B8: =$F$4*$C$8 -> 46.98 | C8: 0.27
A9: 3rd | B9: =$F$4*$C$9 -> 34.8 | C9: 0.2
A10: 4th | B10: =$F$4*$C$10 -> 22.62 | C10: 0.13
A11: Totals | B11: =SUM(B7:B10) -> 161.82 | D11: =SUM(D7:D10) -> 12.18 | E11: =(C7+C8+C9+C10+E7+E8) -> 1
A12: =B11+D11 -> 174
A13: $7,501 - 10,000 Pays 6 Places 4 to 1D, 2 to 2D
A14: Placings | B14: 1D | D14: 2D
A15: 1st | B15: =$F$4*$C$15 -> 50.46 | C15: 0.29 | D15: =$F$4*$E$15 -> 15.66 | E15: 0.09
A16: 2nd | B16: =+$F$4*$C$16 -> 41.76 | C16: 0.24 | D16: =F4*E16 -> 8.7 | E16: 0.05
A17: 3rd | B17: =$F$4*$C$17 -> 33.06 | C17: 0.19
A18: 4th | B18: =$F$4*$C$18 -> 24.36 | C18: 0.14
A19: Totals | B19: =SUM(B15:B18) -> 149.64 | D19: =D16+D15 -> 24.36 | E19: =SUM(C15+C16+C17+C18+E15+E16) -> 1
A20: =D19+B19 -> 174
A21: $10,001 - $15,000 Payes 8 Places 5 to 1D, 3 to 2D
A22: Placings | B22: 1D | D22: 2D
A23: 1st | B23: =F4*C23 -> 41.76 | C23: 0.24 | D23: =F4*E23 -> 12.18 | E23: 0.07
A24: 2nd | B24: =F4*C24 -> 34.8 | C24: 0.2 | D24: =F4*E24 -> 8.7 | E24: 0.05
A25: 3rd | B25: =F4*C25 -> 29.58 | C25: 0.17 | D25: =F4*E25 -> 6.96 | E25: 0.04
A26: 4th | B26: =F4*C26 -> 22.62 | C26: 0.13
A27: 5th | B27: =F4*C27 -> 17.4 | C27: 0.1
A28: Totals | B28: =SUM(B23:B27) -> 146.16 | D28: =SUM(D23:D27) -> 27.84 | E28: =C23+C24+C25+C26+C27+E23+E24+E25 -> 1
A29: =B28+D28 -> 174
A30: $15,001 - $25,000 Payes 11 Places 7 to 1D, 4 to 2D
A31: Placings | B31: 1D | D31: 2D
A32: 1st | B32: =$F$4*C32 -> 36.54 | C32: 0.21 | D32: =$F$4*E32 -> 8.7 | E32: 0.05
A33: 2nd | B33: =$F$4*C33 -> 31.32 | C33: 0.18 | D33: =$F$4*E33 -> 6.96 | E33: 0.04
A34: 3rd | B34: 26.1 | C34: 0.15 | D34: 5.22 | E34: 0.03
A35: 4th | B35: 19.14 | C35: 0.11 | D35: 3.48 | E35: 0.02
A36: 5th | B36: 13.92 | C36: 0.08
A37: 6th | B37: 12.18 | C37: 0.07
A38: 7th | B38: 10.44 | C38: 0.06
A39: Totals | B39: =SUM(B32:B38) -> 149.64 | D39: =SUM(D32:D38) -> 24.36 | E39: =C32+C33+C34+C35+C36+C37+C38+E32+E33+E34+E35 -> 1
A40: =SUM(B39+D39) -> 174
A41: $25,001 - $35,000 Payes 12 Places 8 to 1D, 4 to 2D
A42: Placings | B42: 1D | D42: 2D
A43: 1st | B43: =$F$4*C43 -> 33.06 | C43: 0.19 | D43: =$F$4*E43 -> 8.7 | E43: 0.05
A44: 2nd | B44: =$F$4*C44 -> 26.1 | C44: 0.15 | D44: =$F$4*E44 -> 6.96 | E44: 0.04
A45: 3rd | B45: 20.88 | C45: 0.12 | D45: 5.22 | E45: 0.03
A46: 4th | B46: 17.4 | C46: 0.1 | D46: 3.48 | E46: 0.02
A47: 5th | B47: 15.66 | C47: 0.09
A48: 6th | B48: 13.92 | C48: 0.08
A49: 7th | B49: 12.18 | C49: 0.07
A50: 8th | B50: 10.44 | C50: 0.06
A51: Totals | B51: =SUM(B43:B50) -> 149.64 | D51: =SUM(D43:D46) -> 24.36 | E51: =C43+C44+C45+C46+C47+C48+C49+C50+E43+E44+E45+E46 -> 1
A52: =D51+B51 -> 174

Sheet 2D Payout
A1: 2D Payout
A2: Entry Fee | B2: # Entries | C2: % Payback | D2: Added $ | E2: Total Payout
A3: 20 | B3: 5 | C3: 0.8 | D3: 0 | E3: =(A3*$C$3)*B3+D3 -> 80
A5: % in each D | B5: 0.6 | C5: 0.4 | D5: Total % = | E5: =SUM(B5:C5) -> 1
B6: 1D | C6: 2D
B7: =(($A$3*$B$3*$C$3*$B$5)+($D$3*$B$5)) -> 48 | C7: =(($A$3*$B$3*$C$3*$C$5)+($D$3*$C$5)) -> 32
A8: Totals | B8: =SUM(B7) -> 48 | C8: =SUM(C7) -> 32 | D8: =SUM(B8:C8) -> 80
A10: For 1-7 riders 1 place
A11: Placings | B11: 1D | C11: 2D
A12: 1st | B12: =$B$7*$E$12 -> 48 | C12: =$C$7*$E$5 -> 32 | D12: è | E12: 1
A13: Totals | B13: =SUM(B12:B12) -> 48 | C13: =SUM(C12:C12) -> 32 | D13: =SUM(B13:C13) -> 80 | E13: =SUM(E12) -> 1
A15: For 8-11 riders 2 places
A16: Placings | B16: 1D | C16: 2D
A17: 1st | B17: =$B$7*$E$17 -> 28.8 | C17: =$C$7*$E$17 -> 19.2 | D17: è | E17: 0.6
A18: 2nd | B18: =$B$7*$E$18 -> 19.2 | C18: =$C$7*$E$18 -> 12.8 | D18: è | E18: 0.4
A19: Totals | B19: =SUM(B17:B18) -> 48 | C19: =SUM(C17:C18) -> 32 | D19: =SUM(B19:C19) -> 80 | E19: =SUM(E17:E18) -> 1
A21: For 12-15 riders 3 places
A22: Placings | B22: 1D | C22: 2D
A23: 1st | B23: =$B$7*$E$23 -> 24 | C23: =$C$7*$E$23 -> 16 | D23: è | E23: 0.5
A24: 2nd | B24: =$B$7*$E$24 -> 14.4 | C24: =$C$7*$E$24 -> 9.6 | D24: è | E24: 0.3
A25: 3rd | B25: =$B$7*$E$25 -> 9.6 | C25: =$C$7*$E$25 -> 6.4 | D25: è | E25: 0.2
A26: Totals | B26: =SUM(B23:B25) -> 48 | C26: =SUM(C23:C25) -> 32 | D26: =SUM(B26:C26) -> 80 | E26: =SUM(E23:E25) -> 1
A28: For 16-19 riders 4 places
A29: Placings | B29: 1D | C29: 2D
A30: 1st | B30: =$B$7*$E$30 -> 19.2 | C30: =$C$7*$E$30 -> 12.8 | D30: è | E30: 0.4
A31: 2nd | B31: =$B$7*$E$31 -> 14.4 | C31: =$C$7*$E$31 -> 9.6 | D31: è | E31: 0.3
A32: 3rd | B32: =$B$7*$E$32 -> 9.6 | C32: =$C$7*$E$32 -> 6.4 | D32: è | E32: 0.2
A33: 4th | B33: =$B$7*$E$33 -> 4.8 | C33: =$C$7*$E$33 -> 3.2 | D33: è | E33: 0.1
A34: Totals | B34: =SUM(B30:B33) -> 48 | C34: =SUM(C30:C33) -> 32 | D34: =SUM(B34:C34) -> 80 | E34: =SUM(E30:E33) -> 1
A36: For 20-23 riders 5 places
A37: Placings | B37: 1D | C37: 2D
A38: 1st | B38: =$B$7*$E$38 -> 14.4 | C38: =$C$7*$E$38 -> 9.6 | D38: è | E38: 0.3
A39: 2nd | B39: =$B$7*$E$39 -> 12 | C39: =$C$7*$E$39 -> 8 | D39: è | E39: 0.25
A40: 3rd | B40: =$B$7*$E$40 -> 9.6 | C40: =$C$7*$E$40 -> 6.4 | D40: è | E40: 0.2
A41: 4th | B41: =$B$7*$E$41 -> 7.2 | C41: =$C$7*$E$41 -> 4.8 | D41: è | E41: 0.15
A42: 5th | B42: =$B$7*$E$42 -> 4.8 | C42: =$C$7*$E$42 -> 3.2 | D42: è | E42: 0.1
A43: Totals | B43: =SUM(B38:B42) -> 48 | C43: =SUM(C38:C42) -> 32 | D43: =SUM(B43:C43) -> 80 | E43: =SUM(E38:E42) -> 1
A45: For 24-27 riders 6 places
A46: Placings | B46: 1D | C46: 2D
A47: 1st | B47: =$B$7*$E$47 -> 12 | C47: =$C$7*$E$47 -> 8 | D47: è | E47: 0.25
A48: 2nd | B48: =$B$7*$E$48 -> 9.6 | C48: =$C$7*$E$48 -> 6.4 | D48: è | E48: 0.2
A49: 3rd | B49: =$B$7*$E$49 -> 8.64 | C49: =$C$7*$E$49 -> 5.76 | D49: è | E49: 0.18
A50: 4th | B50: =$B$7*$E$50 -> 7.2 | C50: =$C$7*$E$50 -> 4.8 | D50: è | E50: 0.15
A51: 5th | B51: =$B$7*$E$51 -> 5.76 | C51: =$C$7*$E$51 -> 3.84 | D51: è | E51: 0.12
A52: 6th | B52: =$B$7*$E$52 -> 4.8 | C52: =$C$7*$E$52 -> 3.2 | D52: è | E52: 0.1
A53: Totals | B53: =SUM(B47:B52) -> 48 | C53: =SUM(C47:C52) -> 32 | D53: =SUM(B53:C53) -> 80 | E53: =SUM(E47:E52) -> 1
A55: For 28-31 riders 7 places
A56: Placings | B56: 1D | C56: 2D
A57: 1st | B57: =$B$7*$E$57 -> 10.56 | C57: =$C$7*$E$57 -> 7.04 | D57: è | E57: 0.22
A58: 2nd | B58: =$B$7*$E$58 -> 8.64 | C58: =$C$7*$E$58 -> 5.76 | D58: è | E58: 0.18
A59: 3rd | B59: =$B$7*$E$59 -> 7.68 | C59: =$C$7*$E$59 -> 5.12 | D59: è | E59: 0.16
A60: 4th | B60: =$B$7*$E$60 -> 6.72 | C60: =$C$7*$E$60 -> 4.48 | D60: è | E60: 0.14
A61: 5th | B61: =$B$7*$E$61 -> 5.76 | C61: =$C$7*$E$61 -> 3.84 | D61: è | E61: 0.12
A62: 6th | B62: =$B$7*$E$62 -> 4.8 | C62: =$C$7*$E$62 -> 3.2 | D62: è | E62: 0.1
A63: 7th | B63: =$B$7*$E$63 -> 3.84 | C63: =$C$7*$E$63 -> 2.56 | D63: è | E63: 0.08
A64: Totals | B64: =SUM(B57:B63) -> 48 | C64: =SUM(C57:C63) -> 32 | D64: =SUM(B64:C64) -> 80 | E64: =SUM(E57:E63) -> 1
A66: For 32 or more riders 8 places
A67: Placings | B67: 1D | C67: 2D
A68: 1st | B68: =$B$7*$E$68 -> 11.04 | C68: =$C$7*$E$68 -> 7.36 | D68: è | E68: 0.23
A69: 2nd | B69: =$B$7*$E$69 -> 9.6 | C69: =$C$7*$E$69 -> 6.4 | D69: è | E69: 0.2
A70: 3rd | B70: =$B$7*$E$70 -> 8.16 | C70: =$C$7*$E$70 -> 5.44 | D70: è | E70: 0.17
A71: 4th | B71: =$B$7*$E$71 -> 6.72 | C71: =$C$7*$E$71 -> 4.48 | D71: è | E71: 0.14
A72: 5th | B72: =$B$7*$E$72 -> 5.28 | C72: =$C$7*$E$72 -> 3.52 | D72: è | E72: 0.11
A73: 6th | B73: =$B$7*$E$73 -> 3.84 | C73: =$C$7*$E$73 -> 2.56 | D73: è | E73: 0.08
A74: 7th | B74: =$B$7*$E$74 -> 2.4 | C74: =$C$7*$E$74 -> 1.6 | D74: è | E74: 0.05
A75: 8th | B75: =$B$7*$E$75 -> 0.96 | C75: =$C$7*$E$75 -> 0.64 | D75: è | E75: 0.02
A76: Totals | B76: =SUM(B68:B75) -> 48 | C76: =SUM(C68:C75) -> 32 | D76: =SUM(B76:C76) -> 80 | E76: =SUM(E68:E75) -> 1

Sheet 3D Payout (hidden)
A1: 3D Payout
A2: Entry Fee | B2: # Entries | C2: % Payback | D2: $ From Entry | E2: Added $ | F2: Total Payout
A3: 10 | B3: 3 | C3: 0.8 | D3: =$A$3*$C$3*$B$3 -> 24 | F3: =$D$3+$E$3 -> 24
A5: % in each D | B5: 0.5 | C5: 0.3 | D5: 0.2 | E5: Total % = | F5: =SUM(B5:D5) -> 1
B6: 1D | C6: 2D | D6: 3D
B7: =(($A$3*$B$3*$C$3*$B$5)+($E$3*$B$5)) -> 12 | C7: =(($A$3*$B$3*$C$3*$C$5)+($E$3*$C$5)) -> 7.2 | D7: =(($A$3*$B$3*$C$3*$D$5)+($E$3*$D$5)) -> 4.8
A8: Totals | B8: =SUM(B7) -> 12 | C8: =SUM(C7) -> 7.2 | D8: 4.8 | E8: =SUM(B8:D8) -> 24
A10: For 1-10 riders 1 place
A11: Placings | B11: 1D | C11: 2D | D11: 3D
A12: 1st | B12: =$B$7*$F$12 -> 12 | C12: =$C$7*$F$12 -> 7.2 | D12: =$D$7*$F$12 -> 4.8 | E12: è | F12: 1
A13: Totals | B13: =SUM(B12:B12) -> 12 | C13: =SUM(C12:C12) -> 7.2 | D13: =SUM(D12:D12) -> 4.8 | E13: =SUM(B13:D13) -> 24 | F13: =SUM(F12) -> 1
A15: For 11-15 riders 2 places
A16: Placings | B16: 1D | C16: 2D | D16: 3D
A17: 1st | B17: =$B$7*$F$17 -> 7.2 | C17: =$C$7*$F$17 -> 4.32 | D17: =$D$7*$F$17 -> 2.88 | E17: è | F17: 0.6
A18: 2nd | B18: =$B$7*$F$18 -> 4.8 | C18: =$C$7*$F$18 -> 2.88 | D18: =$D$7*$F$18 -> 1.92 | E18: è | F18: 0.4
A19: Totals | B19: =SUM(B17:B18) -> 12 | C19: =SUM(C17:C18) -> 7.2 | D19: =SUM(D17:D18) -> 4.8 | E19: =SUM(B19:D19) -> 24 | F19: =SUM(F17:F18) -> 1
A21: For 16-30 riders 3 places
A22: Placings | B22: 1D | C22: 2D | D22: 3D
A23: 1st | B23: =$B$7*$F$23 -> 6 | C23: =$C$7*$F$23 -> 3.6 | D23: =$D$7*$F$23 -> 2.4 | E23: è | F23: 0.5
A24: 2nd | B24: =$B$7*$F$24 -> 3.6 | C24: =$C$7*$F$24 -> 2.16 | D24: =$D$7*$F$24 -> 1.44 | E24: è | F24: 0.3
A25: 3rd | B25: =$B$7*$F$25 -> 2.4 | C25: =$C$7*$F$25 -> 1.44 | D25: =$D$7*$F$25 -> 0.96 | E25: è | F25: 0.2
A26: Totals | B26: =SUM(B23:B25) -> 12 | C26: =SUM(C23:C25) -> 7.2 | D26: =SUM(D22:D25) -> 4.8 | E26: =SUM(B26:D26) -> 24 | F26: =SUM(F23:F25) -> 1
A28: For 31-60 riders 4 places
A29: Placings | B29: 1D | C29: 2D | D29: 3D
A30: 1st | B30: =$B$7*$F$30 -> 5.04 | C30: =$C$7*$F$30 -> 3.024 | D30: =$D$7*$F$30 -> 2.016 | E30: è | F30: 0.42
A31: 2nd | B31: =$B$7*$F$31 -> 3.48 | C31: =$C$7*$F$31 -> 2.088 | D31: =$D$7*$F$31 -> 1.392 | E31: è | F31: 0.29
A32: 3rd | B32: =$B$7*$F$32 -> 2.28 | C32: =$C$7*$F$32 -> 1.368 | D32: =$D$7*$F$32 -> 0.912 | E32: è | F32: 0.19
A33: 4th | B33: =$B$7*$F$33 -> 1.2 | C33: =$C$7*$F$33 -> 0.72 | D33: =$D$7*$F$33 -> 0.48 | E33: è | F33: 0.1
A34: Totals | B34: =SUM(B30:B33) -> 12 | C34: =SUM(C30:C33) -> 7.2 | D34: =SUM(D30:D33) -> 4.8 | E34: =SUM(B34:D34) -> 24 | F34: =SUM(F30:F33) -> 1
A36: For 61-90 riders 5 places
A37: Placings | B37: 1D | C37: 2D | D37: 3D
A38: 1st | B38: =$B$7*$F$38 -> 4.56 | C38: =$C$7*$F$38 -> 2.736 | D38: =$D$7*$F$38 -> 1.824 | E38: è | F38: 0.38
A39: 2nd | B39: =$B$7*$F$39 -> 3.36 | C39: =$C$7*$F$39 -> 2.016 | D39: =$D$7*$F$39 -> 1.344 | E39: è | F39: 0.28
A40: 3rd | B40: =$B$7*$F$40 -> 2.16 | C40: =$C$7*$F$40 -> 1.296 | D40: =$D$7*$F$40 -> 0.864 | E40: è | F40: 0.18
A41: 4th | B41: =$B$7*$F$41 -> 1.2 | C41: =$C$7*$F$41 -> 0.72 | D41: =$D$7*$F$41 -> 0.48 | E41: è | F41: 0.1
A42: 5th | B42: =$B$7*$F$42 -> 0.72 | C42: =$C$7*$F$42 -> 0.432 | D42: =$D$7*$F$42 -> 0.288 | E42: è | F42: 0.06
A43: Totals | B43: =SUM(B38:B42) -> 12 | C43: =SUM(C38:C42) -> 7.2 | D43: =SUM(D38:D42) -> 4.8 | E43: =SUM(B43:D43) -> 24 | F43: =SUM(F38:F42) -> 1
A45: For 91-120 riders 6 places
A46: Placings | B46: 1D | C46: 2D | D46: 3D
A47: 1st | B47: =$B$7*$F$47 -> 4.32 | C47: =$C$7*$F$47 -> 2.592 | D47: =$D$7*$F$47 -> 1.728 | E47: è | F47: 0.36
A48: 2nd | B48: =$B$7*$F$48 -> 3.12 | C48: =$C$7*$F$48 -> 1.872 | D48: =$D$7*$F$48 -> 1.248 | E48: è | F48: 0.26
A49: 3rd | B49: =$B$7*$F$49 -> 1.92 | C49: =$C$7*$F$49 -> 1.152 | D49: =$D$7*$F$49 -> 0.768 | E49: è | F49: 0.16
A50: 4th | B50: =$B$7*$F$50 -> 1.2 | C50: =$C$7*$F$50 -> 0.72 | D50: =$D$7*$F$50 -> 0.48 | E50: è | F50: 0.1
A51: 5th | B51: =$B$7*$F$51 -> 0.84 | C51: =$C$7*$F$51 -> 0.504 | D51: =$D$7*$F$51 -> 0.336 | E51: è | F51: 0.07
A52: 6th | B52: =$B$7*$F$52 -> 0.6 | C52: =$C$7*$F$52 -> 0.36 | D52: =$D$7*$F$52 -> 0.24 | E52: è | F52: 0.05
A53: Totals | B53: =SUM(B47:B52) -> 12 | C53: =SUM(C47:C52) -> 7.2 | D53: =SUM(D47:D52) -> 4.8 | E53: =SUM(B53:D53) -> 24 | F53: =SUM(F47:F52) -> 1
A55: For 121-200 riders 7 places
A56: Placings | B56: 1D | C56: 2D | D56: 3D
A57: 1st | B57: =$B$7*$F$57 -> 3.12 | C57: =$C$7*$F$57 -> 1.872 | D57: =$D$7*$F$57 -> 1.248 | E57: è | F57: 0.26
A58: 2nd | B58: =$B$7*$F$58 -> 2.4 | C58: =$C$7*$F$58 -> 1.44 | D58: =$D$7*$F$58 -> 0.96 | E58: è | F58: 0.2
A59: 3rd | B59: =$B$7*$F$59 -> 1.8 | C59: =$C$7*$F$59 -> 1.08 | D59: =$D$7*$F$59 -> 0.72 | E59: è | F59: 0.15
A60: 4th | B60: =$B$7*$F$60 -> 1.44 | C60: =$C$7*$F$60 -> 0.864 | D60: =$D$7*$F$60 -> 0.576 | E60: è | F60: 0.12
A61: 5th | B61: =$B$7*$F$61 -> 1.2 | C61: =$C$7*$F$61 -> 0.72 | D61: =$D$7*$F$61 -> 0.48 | E61: è | F61: 0.1
A62: 6th | B62: =$B$7*$F$62 -> 1.08 | C62: =$C$7*$F$62 -> 0.648 | D62: =$D$7*$F$62 -> 0.432 | E62: è | F62: 0.09
A63: 7th | B63: =$B$7*$F$63 -> 0.96 | C63: =$C$7*$F$63 -> 0.576 | D63: =$D$7*$F$63 -> 0.384 | E63: è | F63: 0.08
A64: Totals | B64: =SUM(B57:B63) -> 12 | C64: =SUM(C57:C63) -> 7.2 | D64: =SUM(D57:D63) -> 4.8 | E64: =SUM(B64:D64) -> 24 | F64: =SUM(F57:F63) -> 1
A66: For 201 or more riders 8 places
A67: Placings | B67: 1D | C67: 2D | D67: 3D
A68: 1st | B68: =$B$7*0.24 -> 2.88 | C68: =$C$7*0.24 -> 1.728 | D68: =$D$7*0.24 -> 1.152 | E68: è | F68: 0.24
A69: 2nd | B69: =$B$7*0.18 -> 2.16 | C69: =$C$7*0.18 -> 1.296 | D69: =$D$7*0.18 -> 0.864 | E69: è | F69: 0.18
A70: 3rd | B70: =$B$7*0.15 -> 1.8 | C70: =$C$7*0.15 -> 1.08 | D70: =$D$7*0.15 -> 0.72 | E70: è | F70: 0.15
A71: 4th | B71: =$B$7*0.12 -> 1.44 | C71: =$C$7*0.12 -> 0.864 | D71: =$D$7*0.12 -> 0.576 | E71: è | F71: 0.12
A72: 5th | B72: =$B$7*0.1 -> 1.2 | C72: =$C$7*0.1 -> 0.72 | D72: =$D$7*0.1 -> 0.48 | E72: è | F72: 0.1
A73: 6th | B73: =$B$7*0.08 -> 0.96 | C73: =$C$7*0.08 -> 0.576 | D73: =$D$7*0.08 -> 0.384 | E73: è | F73: 0.08
A74: 7th | B74: =$B$7*0.07 -> 0.84 | C74: =$C$7*0.07 -> 0.504 | D74: =$D$7*0.07 -> 0.336 | E74: è | F74: 0.07
A75: 8th | B75: =$B$7*0.06 -> 0.72 | C75: =$C$7*0.06 -> 0.432 | D75: =$D$7*0.06 -> 0.288 | E75: è | F75: 0.06
A76: Totals | B76: =SUM(B68:B75) -> 12 | C76: =SUM(C68:C75) -> 7.2 | D76: =SUM(D68:D75) -> 4.8 | E76: =SUM(B76:D76) -> 24 | F76: =SUM(F68:F75) -> 1

Sheet 4D Payout BBR (hidden)
A1: 4D Payout BBR
A2: Entry Fee | B2: # Entries | C2: % Payback | D2: $ From Entry | E2: Added $ | F2: Total Payout
A3: 40 | B3: 200 | C3: 0.8 | D3: =$A$3*$C$3*$B$3 -> 6400 | E3: 1100 | F3: =($A$3*$C$3)*$B$3+$E$3 -> 7500
A5: % in each D | B5: 0.35 | C5: 0.3 | D5: 0.2 | E5: 0.15 | F5: Total % Payout | G5: =SUM(B5:E5) -> 1
B6: 1D | C6: 2D | D6: 3D | E6: 4D
B7: =(($A$3*$B$3*$C$3*0.35)+($E$3/4)) -> 2515 | C7: =(($A$3*$B$3*$C$3*0.3)+($E$3/4)) -> 2195 | D7: =(($A$3*$B$3*$C$3*0.2)+($E$3/4)) -> 1555 | E7: =(($A$3*$B$3*$C$3*0.15)+($E$3/4)) -> 1235
A8: Totals | B8: =SUM(B7) -> 2515 | C8: =SUM(C7) -> 2195 | D8: 1555 | E8: 1235 | F8: =SUM(B8:E8) -> 7500
A10: For 1-16 riders 1 place
A11: Placings | B11: 1D | C11: 2D | D11: 3D | E11: 4D
A12: 1st | B12: =$B$7*$G$12 -> 2515 | C12: =$C$7*$G$12 -> 2195 | D12: =$D$7*$G$12 -> 1555 | E12: =$E$7*$G$12 -> 1235 | F12: è | G12: 1
A13: Totals | B13: =SUM(B12:B12) -> 2515 | C13: =SUM(C12:C12) -> 2195 | D13: =SUM(D12:D12) -> 1555 | E13: =SUM(E12:E12) -> 1235 | F13: =SUM(B13:E13) -> 7500 | G13: =SUM(G12) -> 1
A15: For 17-33 riders 2 places
A16: Placings | B16: 1D | C16: 2D | D16: 3D | E16: 4D
A17: 1st | B17: =$B$7*$G$17 -> 1509 | C17: =$C$7*$G$17 -> 1317 | D17: =$D$7*$G$17 -> 933 | E17: =$E$7*$G$17 -> 741 | F17: è | G17: 0.6
A18: 2nd | B18: =$B$7*$G$18 -> 1006 | C18: =$C$7*$G$18 -> 878 | D18: =$D$7*$G$18 -> 622 | E18: =$E$7*$G$18 -> 494 | F18: è | G18: 0.4
A19: Totals | B19: =SUM(B17:B18) -> 2515 | C19: =SUM(C17:C18) -> 2195 | D19: =SUM(D17:D18) -> 1555 | E19: =SUM(E17:E18) -> 1235 | F19: =SUM(B19:E19) -> 7500 | G19: =SUM(G17:G18) -> 1
A21: For 34-66 riders 3 places
A22: Placings | B22: 1D | C22: 2D | D22: 3D | E22: 4D
A23: 1st | B23: =$B$7*$G$23 -> 1257.5 | C23: =$C$7*$G$23 -> 1097.5 | D23: =$D$7*$G$23 -> 777.5 | E23: =$E$7*$G$23 -> 617.5 | F23: è | G23: 0.5
A24: 2nd | B24: =$B$7*$G$24 -> 754.5 | C24: =$C$7*$G$24 -> 658.5 | D24: =$D$7*$G$24 -> 466.5 | E24: =$E$7*$G$24 -> 370.5 | F24: è | G24: 0.3
A25: 3rd | B25: =$B$7*$G$25 -> 503 | C25: =$C$7*$G$25 -> 439 | D25: =$D$7*$G$25 -> 311 | E25: =$E$7*$G$25 -> 247 | F25: è | G25: 0.2
A26: Totals | B26: =SUM(B23:B25) -> 2515 | C26: =SUM(C23:C25) -> 2195 | D26: =SUM(D23:D25) -> 1555 | E26: =SUM(E23:E25) -> 1235 | F26: =SUM(B26:E26) -> 7500 | G26: =SUM(G23:G25) -> 1
A28: For 97-95 riders 4 places
A29: Placings | B29: 1D | C29: 2D | D29: 3D | E29: 4D
A30: 1st | B30: =$B$7*$G$30 -> 1006 | C30: =$C$7*$G$30 -> 878 | D30: =$D$7*$G$30 -> 622 | E30: =$E$7*$G$30 -> 494 | F30: è | G30: 0.4
A31: 2nd | B31: =$B$7*$G$31 -> 754.5 | C31: =$C$7*$G$31 -> 658.5 | D31: =$D$7*$G$31 -> 466.5 | E31: =$E$7*$G$31 -> 370.5 | F31: è | G31: 0.3
A32: 3rd | B32: =$B$7*$G$32 -> 503 | C32: =$C$7*$G$32 -> 439 | D32: =$D$7*$G$32 -> 311 | E32: =$E$7*$G$32 -> 247 | F32: è | G32: 0.2
A33: 4th | B33: =$B$7*$G$33 -> 251.5 | C33: =$C$7*$G$33 -> 219.5 | D33: =$D$7*$G$33 -> 155.5 | E33: =$E$7*$G$33 -> 123.5 | F33: è | G33: 0.1
A34: Totals | B34: =SUM(B30:B33) -> 2515 | C34: =SUM(C30:C33) -> 2195 | D34: =SUM(D30:D33) -> 1555 | E34: =SUM(E30:E33) -> 1235 | F34: =SUM(B34:E34) -> 7500 | G34: =SUM(G30:G33) -> 1
A36: For 96-133 riders 5 places
A37: Placings | B37: 1D | C37: 2D | D37: 3D | E37: 4D
A38: 1st | B38: =$B$7*$G$38 -> 829.95 | C38: =$C$7*$G$38 -> 724.35 | D38: =$D$7*G38 -> 513.15 | E38: =$E$7*$G$38 -> 407.55 | F38: è | G38: 0.33
A39: 2nd | B39: =$B$7*$G$39 -> 679.05 | C39: =$C$7*$G$39 -> 592.65 | D39: =$D$7*$G$39 -> 419.85 | E39: =$E$7*$G$39 -> 333.45 | F39: è | G39: 0.27
A40: 3rd | B40: =$B$7*$G$40 -> 503 | C40: =$C$7*$G$40 -> 439 | D40: =$D$7*$G$40 -> 311 | E40: =$E$7*$G$40 -> 247 | F40: è | G40: 0.2
A41: 4th | B41: =$B$7*$G$41 -> 326.95 | C41: =$C$7*$G$41 -> 285.35 | D41: =$D$7*$G$41 -> 202.15 | E41: =$E$7*$G$41 -> 160.55 | F41: è | G41: 0.13
A42: 5th | B42: =$B$7*$G$42 -> 176.05 | C42: =$C$7*$G$42 -> 153.65 | D42: =$D$7*$G$42 -> 108.85 | E42: =$E$7*$G$42 -> 86.45 | F42: è | G42: 0.07
A43: Totals | B43: =SUM(B38:B42) -> 2515 | C43: =SUM(C38:C42) -> 2195 | D43: =SUM(D38:D42) -> 1555 | E43: =SUM(E38:E42) -> 1235 | F43: =SUM(B43:E43) -> 7500 | G43: =SUM(G38:G42) -> 1
A45: For 134-166 riders 6 places
A46: Placings | B46: 1D | C46: 2D | D46: 3D | E46: 4D
A47: 1st | B47: =$B$7*$G$47 -> 729.35 | C47: =$C$7*$G$47 -> 636.55 | D47: =$D$7*$G$47 -> 450.95 | E47: =$E$7*$G$47 -> 358.15 | F47: è | G47: 0.29
A48: 2nd | B48: =$B$7*$G$48 -> 603.6 | C48: =$C$7*$G$48 -> 526.8 | D48: =$D$7*$G$48 -> 373.2 | E48: =$E$7*$G$48 -> 296.4 | F48: è | G48: 0.24
A49: 3rd | B49: =$B$7*$G$49 -> 477.85 | C49: =$C$7*$G$49 -> 417.05 | D49: =$D$7*$G$49 -> 295.45 | E49: =$E$7*$G$49 -> 234.65 | F49: è | G49: 0.19
A50: 4th | B50: =$B$7*$G$50 -> 352.1 | C50: =$C$7*$G$50 -> 307.3 | D50: =$D$7*$G$50 -> 217.7 | E50: =$E$7*$G$50 -> 172.9 | F50: è | G50: 0.14
A51: 5th | B51: =$B$7*$G$51 -> 226.35 | C51: =$C$7*$G$51 -> 197.55 | D51: =$D$7*$G$51 -> 139.95 | E51: =$E$7*$G$51 -> 111.15 | F51: è | G51: 0.09
A52: 6th | B52: =$B$7*$G$52 -> 125.75 | C52: =$C$7*$G$52 -> 109.75 | D52: =$D$7*$G$52 -> 77.75 | E52: =$E$7*$G$52 -> 61.75 | F52: è | G52: 0.05
A53: Totals | B53: =SUM(B47:B52) -> 2515 | C53: =SUM(C47:C52) -> 2195 | D53: =SUM(D47:D52) -> 1555 | E53: =SUM(E47:E52) -> 1235 | F53: =SUM(B53:E53) -> 7500 | G53: =SUM(G47:G52) -> 1
A55: For 167-222 riders 8 places
A56: Placings | B56: 1D | C56: 2D | D56: 3D | E56: 4D
A57: 1st | B57: =$B$7*$G$57 -> 603.6 | C57: =$C$7*$G$57 -> 526.8 | D57: =$D$7*$G$57 -> 373.2 | E57: =$E$7*$G$57 -> 296.4 | F57: è | G57: 0.24
A58: 2nd | B58: =$B$7*$G$58 -> 503 | C58: =$C$7*$G$58 -> 439 | D58: =$D$7*$G$58 -> 311 | E58: =$E$7*$G$58 -> 247 | F58: è | G58: 0.2
A59: 3rd | B59: =$B$7*$G$59 -> 427.55 | C59: =$C$7*$G$59 -> 373.15 | D59: =$D$7*$G$59 -> 264.35 | E59: =$E$7*$G$59 -> 209.95 | F59: è | G59: 0.17
A60: 4th | B60: =$B$7*$G$60 -> 326.95 | C60: =$C$7*$G$60 -> 285.35 | D60: =$D$7*$G$60 -> 202.15 | E60: =$E$7*$G$60 -> 160.55 | F60: è | G60: 0.13
A61: 5th | B61: =$B$7*$G$61 -> 251.5 | C61: =$C$7*$G$61 -> 219.5 | D61: =$D$7*$G$61 -> 155.5 | E61: =$E$7*$G$61 -> 123.5 | F61: è | G61: 0.1
A62: 6th | B62: =$B$7*$G$62 -> 176.05 | C62: =$C$7*$G$62 -> 153.65 | D62: =$D$7*$G$62 -> 108.85 | E62: =$E$7*$G$62 -> 86.45 | F62: è | G62: 0.07
A63: 7th | B63: =$B$7*$G$63 -> 125.75 | C63: =$C$7*$G$63 -> 109.75 | D63: =$D$7*$G$63 -> 77.75 | E63: =$E$7*$G$63 -> 61.75 | F63: è | G63: 0.05
A64: 8th | B64: =$B$7*$G$64 -> 100.6 | C64: =$C$7*$G$64 -> 87.8 | D64: =$D$7*$G$64 -> 62.2 | E64: =$E$7*$G$64 -> 49.4 | F64: è | G64: 0.04
A65: Totals | B65: =SUM(B57:B64) -> 2515 | C65: =SUM(C57:C64) -> 2195 | D65: =SUM(D57:D64) -> 1555 | E65: =SUM(E57:E64) -> 1235 | F65: =SUM(B65:E65) -> 7500 | G65: =SUM(G57:G64) -> 1
A67: For 223-333 riders 10 places
A68: Placings | B68: 1D | C68: 2D | D68: 3D | E68: 4D
A69: 1st | B69: =$B$7*$G$69 -> 528.15 | C69: =$C$7*$G$69 -> 460.95 | D69: =$D$7*$G$69 -> 326.55 | E69: =$E$7*$G$69 -> 259.35 | F69: è | G69: 0.21
A70: 2nd | B70: =$B$7*$G$70 -> 452.7 | C70: =$C$7*$G$70 -> 395.1 | D70: =$D$7*$G$70 -> 279.9 | E70: =$E$7*$G$70 -> 222.3 | F70: è | G70: 0.18
A71: 3rd | B71: =$B$7*$G$71 -> 377.25 | C71: =$C$7*$G$71 -> 329.25 | D71: =$D$7*$G$71 -> 233.25 | E71: =$E$7*$G$71 -> 185.25 | F71: è | G71: 0.15
A72: 4th | B72: =$B$7*$G$72 -> 301.8 | C72: =$C$7*$G$72 -> 263.4 | D72: =$D$7*$G$72 -> 186.6 | E72: =$E$7*$G$72 -> 148.2 | F72: è | G72: 0.12
A73: 5th | B73: =$B$7*$G$73 -> 226.35 | C73: =$C$7*$G$73 -> 197.55 | D73: =$D$7*$G$73 -> 139.95 | E73: =$E$7*$G$73 -> 111.15 | F73: è | G73: 0.09
A74: 6th | B74: =$B$7*$G$74 -> 176.05 | C74: =$C$7*$G$74 -> 153.65 | D74: =$D$7*$G$74 -> 108.85 | E74: =$E$7*$G$74 -> 86.45 | F74: è | G74: 0.07
A75: 7th | B75: =$B$7*$G$75 -> 150.9 | C75: =$C$7*$G$75 -> 131.7 | D75: =$D$7*$G$75 -> 93.3 | E75: =$E$7*$G$75 -> 74.1 | F75: è | G75: 0.06
A76: 8th | B76: =$B$7*$G$76 -> 125.75 | C76: =$C$7*$G$76 -> 109.75 | D76: =$D$7*$G$76 -> 77.75 | E76: =$E$7*$G$76 -> 61.75 | F76: è | G76: 0.05
A77: 9th | B77: =$B$7*$G$77 -> 100.6 | C77: =$C$7*$G$77 -> 87.8 | D77: =$D$7*$G$77 -> 62.2 | E77: =$E$7*$G$77 -> 49.4 | F77: è | G77: 0.04
A78: 10th | B78: =$B$7*$G$78 -> 75.45 | C78: =$C$7*$G$78 -> 65.85 | D78: =$D$7*$G$78 -> 46.65 | E78: =$E$7*$G$78 -> 37.05 | F78: è | G78: 0.03
A79: Totals | B79: =SUM(B69:B78) -> 2515 | C79: =SUM(C69:C78) -> 2195 | D79: =SUM(D69:D78) -> 1555 | E79: =SUM(E69:E78) -> 1235 | F79: =B79+C79+D79+E79 -> 7500 | G79: =SUM(G69:G78) -> 1
A81: For 334-500 riders 12 places
A82: Placings | B82: 1D | C82: 2D | D82: 3D | E82: 4D
A83: 1st | B83: =$B$7*$G$83 -> 477.85 | C83: =$C$7*$G$83 -> 417.05 | D83: =$D$7*$G$83 -> 295.45 | E83: =$E$7*$G$83 -> 234.65 | F83: è | G83: 0.19
A84: 2nd | B84: =$B$7*$G$84 -> 377.25 | C84: =$C$7*$G$84 -> 329.25 | D84: =$D$7*$G$84 -> 233.25 | E84: =$E$7*$G$84 -> 185.25 | F84: è | G84: 0.15
A85: 3rd | B85: =$B$7*$G$85 -> 301.8 | C85: =$C$7*$G$85 -> 263.4 | D85: =$D$7*$G$85 -> 186.6 | E85: =$E$7*$G$85 -> 148.2 | F85: è | G85: 0.12
A86: 4th | B86: =$B$7*$G$86 -> 251.5 | C86: =$C$7*$G$86 -> 219.5 | D86: =$D$7*$G$86 -> 155.5 | E86: =$E$7*$G$86 -> 123.5 | F86: è | G86: 0.1
A87: 5th | B87: =$B$7*$G$87 -> 226.35 | C87: =$C$7*$G$87 -> 197.55 | D87: =$D$7*$G$87 -> 139.95 | E87: =$E$7*$G$87 -> 111.15 | F87: è | G87: 0.09
A88: 6th | B88: =$B$7*$G$88 -> 201.2 | C88: =$C$7*$G$88 -> 175.6 | D88: =$D$7*$G$88 -> 124.4 | E88: =$E$7*$G$88 -> 98.8 | F88: è | G88: 0.08
A89: 7th | B89: =$B$7*$G$89 -> 176.05 | C89: =$C$7*$G$89 -> 153.65 | D89: =$D$7*$G$89 -> 108.85 | E89: =$E$7*$G$89 -> 86.45 | F89: è | G89: 0.07
A90: 8th | B90: =$B$7*$G$90 -> 150.9 | C90: =$C$7*$G$90 -> 131.7 | D90: =$D$7*$G$90 -> 93.3 | E90: =$E$7*$G$90 -> 74.1 | F90: è | G90: 0.06
A91: 9th | B91: =$B$7*$G$91 -> 125.75 | C91: =$C$7*$G$91 -> 109.75 | D91: =$D$7*$G$91 -> 77.75 | E91: =$E$7*$G$91 -> 61.75 | F91: è | G91: 0.05
A92: 10th | B92: =$B$7*$G$92 -> 100.6 | C92: =$C$7*$G$92 -> 87.8 | D92: =$D$7*$G$92 -> 62.2 | E92: =$E$7*$G$92 -> 49.4 | F92: è | G92: 0.04
A93: 11th | B93: =$B$7*$G$93 -> 75.45 | C93: =$C$7*$G$93 -> 65.85 | D93: =$D$7*$G$93 -> 46.65 | E93: =$E$7*$G$93 -> 37.05 | F93: è | G93: 0.03
A94: 12th | B94: =$B$7*$G$94 -> 50.3 | C94: =$C$7*$G$94 -> 43.9 | D94: =$D$7*$G$94 -> 31.1 | E94: =$E$7*$G$94 -> 24.7 | F94: è | G94: 0.02
A95: Totals | B95: =SUM(B83:B94) -> 2515 | C95: =SUM(C83:C94) -> 2195 | D95: 1555 | E95: 1235 | F95: =B95+C95+D95+E95 -> 7500 | G95: =SUM(G83:G94) -> 1
A97: For 501-750 riders 15 places
A98: Placings | B98: 1D | C98: 2D | D98: 3D | E98: 4D
A99: 1st | B99: =$B$7*$G$99 -> 452.7 | C99: =$C$7*$G$99 -> 395.1 | D99: =$D$7*$G$99 -> 279.9 | E99: =$E$7*$G$99 -> 222.3 | F99: è | G99: 0.18
A100: 2nd | B100: =$B$7*$G$100 -> 377.25 | C100: =$C$7*$G$100 -> 329.25 | D100: =$D$7*$G$100 -> 233.25 | E100: =$E$7*$G$100 -> 185.25 | F100: è | G100: 0.15
A101: 3rd | B101: =$B$7*$G$101 -> 301.8 | C101: =$C$7*$G$101 -> 263.4 | D101: =$D$7*$G$101 -> 186.6 | E101: =$E$7*$G$101 -> 148.2 | F101: è | G101: 0.12
A102: 4th | B102: =$B$7*$G$102 -> 251.5 | C102: =$C$7*$G$102 -> 219.5 | D102: =$D$7*$G$102 -> 155.5 | E102: =$E$7*$G$102 -> 123.5 | F102: è | G102: 0.1
A103: 5th | B103: =$B$7*$G$103 -> 213.775 | C103: =$C$7*$G$103 -> 186.575 | D103: =$D$7*$G$103 -> 132.175 | E103: =$E$7*$G$103 -> 104.975 | F103: è | G103: 0.085
A104: 6th | B104: =$B$7*$G$104 -> 176.05 | C104: =$C$7*$G$104 -> 153.65 | D104: =$D$7*$G$104 -> 108.85 | E104: =$E$7*$G$104 -> 86.45 | F104: è | G104: 0.07
A105: 7th | B105: =$B$7*$G$105 -> 150.9 | C105: =$C$7*$G$105 -> 131.7 | D105: =$D$7*$G$105 -> 93.3 | E105: =$E$7*$G$105 -> 74.1 | F105: è | G105: 0.06
A106: 8th | B106: =$B$7*$G$106 -> 125.75 | C106: =$C$7*$G$106 -> 109.75 | D106: =$D$7*$G$106 -> 77.75 | E106: =$E$7*$G$106 -> 61.75 | F106: è | G106: 0.05
A107: 9th | B107: =$B$7*$G$107 -> 106.8875 | C107: =$C$7*$G$107 -> 93.2875 | D107: =$D$7*$G$107 -> 66.0875 | E107: =$E$7*$G$107 -> 52.4875 | F107: è | G107: 0.0425
A108: 10th | B108: =$B$7*$G$108 -> 88.025 | C108: =$C$7*$G$108 -> 76.825 | D108: =$D$7*$G$108 -> 54.425 | E108: =$E$7*$G$108 -> 43.225 | F108: è | G108: 0.035
A109: 11th | B109: =$B$7*$G$109 -> 75.45 | C109: =$C$7*$G$109 -> 65.85 | D109: =$D$7*$G$109 -> 46.65 | E109: =$E$7*$G$109 -> 37.05 | F109: è | G109: 0.03
A110: 12th | B110: =$B$7*$G$110 -> 62.875 | C110: =$C$7*$G$110 -> 54.875 | D110: =$D$7*$G$110 -> 38.875 | E110: =$E$7*$G$110 -> 30.875 | F110: è | G110: 0.025
A111: 13th | B111: =$B$7*$G$111 -> 50.3 | C111: =$C$7*$G$111 -> 43.9 | D111: =$D$7*$G$111 -> 31.1 | E111: =$E$7*$G$111 -> 24.7 | F111: è | G111: 0.02
A112: 14th | B112: =$B$7*$G$112 -> 44.0125 | C112: =$C$7*$G$112 -> 38.4125 | D112: =$D$7*$G$112 -> 27.2125 | E112: =$E$7*$G$112 -> 21.6125 | F112: è | G112: 0.0175
A113: 15th | B113: =$B$7*$G$113 -> 37.725 | C113: =$C$7*$G$113 -> 32.925 | D113: =$D$7*$G$113 -> 23.325 | E113: =$E$7*$G$113 -> 18.525 | F113: è | G113: 0.015
A114: Totals | B114: =SUM(B99:B113) -> 2515 | C114: =SUM(C99:C113) -> 2195 | D114: 1555 | E114: 1235 | F114: =B114+C114+D114+E114 -> 7500 | G114: =SUM(G99:G113) -> 1
A116: For 751-1200 riders 20 places
A117: Placings | B117: 1D | C117: 2D | D117: 3D | E117: 4D
A118: 1st | B118: =$B$7*$G$118 -> 352.1 | C118: =$C$7*$G$118 -> 307.3 | D118: =$D$7*$G$118 -> 217.7 | E118: =$E$7*$G$118 -> 172.9 | F118: è | G118: 0.14
A119: 2nd | B119: =$B$7*$G$119 -> 276.65 | C119: =$C$7*$G$119 -> 241.45 | D119: =$D$7*$G$119 -> 171.05 | E119: =$E$7*$G$119 -> 135.85 | F119: è | G119: 0.11
A120: 3rd | B120: =$B$7*$G$120 -> 226.35 | C120: =$C$7*$G$120 -> 197.55 | D120: =$D$7*$G$120 -> 139.95 | E120: =$E$7*$G$120 -> 111.15 | F120: è | G120: 0.09
A121: 4th | B121: =$B$7*$G$121 -> 193.655 | C121: =$C$7*$G$121 -> 169.015 | D121: =$D$7*$G$121 -> 119.735 | E121: =$E$7*$G$121 -> 95.095 | F121: è | G121: 0.077
A122: 5th | B122: =$B$7*$G$122 -> 176.05 | C122: =$C$7*$G$122 -> 153.65 | D122: =$D$7*$G$122 -> 108.85 | E122: =$E$7*$G$122 -> 86.45 | F122: è | G122: 0.07
A123: 6th | B123: =$B$7*$G$123 -> 163.475 | C123: =$C$7*$G$123 -> 142.675 | D123: =$D$7*$G$123 -> 101.075 | E123: =$E$7*$G$123 -> 80.275 | F123: è | G123: 0.065
A124: 7th | B124: =$B$7*$G$124 -> 150.9 | C124: =$C$7*$G$124 -> 131.7 | D124: =$D$7*$G$124 -> 93.3 | E124: =$E$7*$G$124 -> 74.1 | F124: è | G124: 0.06
A125: 8th | B125: =$B$7*$G$125 -> 138.325 | C125: =$C$7*$G$125 -> 120.725 | D125: =$D$7*$G$125 -> 85.525 | E125: =$E$7*$G$125 -> 67.925 | F125: è | G125: 0.055
A126: 9th | B126: =$B$7*$G$126 -> 125.75 | C126: =$C$7*$G$126 -> 109.75 | D126: =$D$7*$G$126 -> 77.75 | E126: =$E$7*$G$126 -> 61.75 | F126: è | G126: 0.05
A127: 10th | B127: =$B$7*$G$127 -> 113.175 | C127: =$C$7*$G$127 -> 98.775 | D127: =$D$7*$G$127 -> 69.975 | E127: =$E$7*$G$127 -> 55.575 | F127: è | G127: 0.045
A128: 11th | B128: =$B$7*$G$128 -> 100.6 | C128: =$C$7*$G$128 -> 87.8 | D128: =$D$7*$G$128 -> 62.2 | E128: =$E$7*$G$128 -> 49.4 | F128: è | G128: 0.04
A129: 12th | B129: =$B$7*$G$129 -> 93.055 | C129: =$C$7*$G$129 -> 81.215 | D129: =$D$7*$G$129 -> 57.535 | E129: =$E$7*$G$129 -> 45.695 | F129: è | G129: 0.037
A130: 13th | B130: =$B$7*$G$130 -> 82.995 | C130: =$C$7*$G$130 -> 72.435 | D130: =$D$7*$G$130 -> 51.315 | E130: =$E$7*$G$130 -> 40.755 | F130: è | G130: 0.033
A131: 14th | B131: =$B$7*$G$131 -> 72.935 | C131: =$C$7*$G$131 -> 63.655 | D131: =$D$7*$G$131 -> 45.095 | E131: =$E$7*$G$131 -> 35.815 | F131: è | G131: 0.029
A132: 15th | B132: =$B$7*$G$132 -> 62.875 | C132: =$C$7*$G$132 -> 54.875 | D132: =$D$7*$G$132 -> 38.875 | E132: =$E$7*$G$132 -> 30.875 | F132: è | G132: 0.025
A133: 16th | B133: =$B$7*$G$133 -> 52.815 | C133: =$C$7*$G$133 -> 46.095 | D133: =$D$7*$G$133 -> 32.655 | E133: =$E$7*$G$133 -> 25.935 | F133: è | G133: 0.021
A134: 17th | B134: =$B$7*$G$134 -> 42.755 | C134: =$C$7*$G$134 -> 37.315 | D134: =$D$7*$G$134 -> 26.435 | E134: =$E$7*$G$134 -> 20.995 | F134: è | G134: 0.017
A135: 18th | B135: =$B$7*$G$135 -> 35.21 | C135: =$C$7*$G$135 -> 30.73 | D135: =$D$7*$G$135 -> 21.77 | E135: =$E$7*$G$135 -> 17.29 | F135: è | G135: 0.014
A136: 19th | B136: =$B$7*$G$136 -> 30.18 | C136: =$C$7*$G$136 -> 26.34 | D136: =$D$7*$G$136 -> 18.66 | E136: =$E$7*$G$136 -> 14.82 | F136: è | G136: 0.012
A137: 20th | B137: =$B$7*$G$137 -> 25.15 | C137: =$C$7*$G$137 -> 21.95 | D137: =$D$7*$G$137 -> 15.55 | E137: =$E$7*$G$137 -> 12.35 | F137: è | G137: 0.01
A138: Totals | B138: =SUM(B118:B137) -> 2515 | C138: =SUM(C118:C137) -> 2195 | D138: 1555 | E138: 1235 | F138: =B138+C138+D138+E138 -> 7500 | G138: =SUM(G118:G137) -> 1
A140: For 1201 or More riders 30 places
A141: Placings | B141: 1D | C141: 2D | D141: 3D | E141: 4D
A142: 1st | B142: =$B$7*$G$142 -> 301.8 | C142: =$C$7*$G$142 -> 263.4 | D142: =$D$7*$G$142 -> 186.6 | E142: =$E$7*$G$142 -> 148.2 | F142: è | G142: 0.12
A143: 2nd | B143: =$B$7*$G$143 -> 238.925 | C143: =$C$7*$G$143 -> 208.525 | D143: =$D$7*$G$143 -> 147.725 | E143: =$E$7*$G$143 -> 117.325 | F143: è | G143: 0.095
A144: 3rd | B144: =$B$7*$G$144 -> 183.595 | C144: =$C$7*$G$144 -> 160.235 | D144: =$D$7*$G$144 -> 113.515 | E144: =$E$7*$G$144 -> 90.155 | F144: è | G144: 0.073
A145: 4th | B145: =$B$7*$G$145 -> 155.93 | C145: =$C$7*$G$145 -> 136.09 | D145: =$D$7*$G$145 -> 96.41 | E145: =$E$7*$G$145 -> 76.57 | F145: è | G145: 0.062
A146: 5th | B146: =$B$7*$G$146 -> 125.75 | C146: =$C$7*$G$146 -> 109.75 | D146: =$D$7*$G$146 -> 77.75 | E146: =$E$7*$G$146 -> 61.75 | F146: è | G146: 0.05
A147: 6th | B147: =$B$7*$G$147 -> 113.175 | C147: =$C$7*$G$147 -> 98.775 | D147: =$D$7*$G$147 -> 69.975 | E147: =$E$7*$G$147 -> 55.575 | F147: è | G147: 0.045
A148: 7th | B148: =$B$7*$G$148 -> 108.145 | C148: =$C$7*$G$148 -> 94.385 | D148: =$D$7*$G$148 -> 66.865 | E148: =$E$7*$G$148 -> 53.105 | F148: è | G148: 0.043
A149: 8th | B149: =$B$7*$G$149 -> 100.6 | C149: =$C$7*$G$149 -> 87.8 | D149: =$D$7*$G$149 -> 62.2 | E149: =$E$7*$G$149 -> 49.4 | F149: è | G149: 0.04
A150: 9th | B150: =$B$7*$G$150 -> 93.055 | C150: =$C$7*$G$150 -> 81.215 | D150: =$D$7*$G$150 -> 57.535 | E150: =$E$7*$G$150 -> 45.695 | F150: è | G150: 0.037
A151: 10th | B151: =$B$7*$G$151 -> 88.025 | C151: =$C$7*$G$151 -> 76.825 | D151: =$D$7*$G$151 -> 54.425 | E151: =$E$7*$G$151 -> 43.225 | F151: è | G151: 0.035
A152: 11th | B152: =$B$7*$G$152 -> 82.995 | C152: =$C$7*$G$152 -> 72.435 | D152: =$D$7*$G$152 -> 51.315 | E152: =$E$7*$G$152 -> 40.755 | F152: è | G152: 0.033
A153: 12th | B153: =$B$7*$G$153 -> 77.965 | C153: =$C$7*$G$153 -> 68.045 | D153: =$D$7*$G$153 -> 48.205 | E153: =$E$7*$G$153 -> 38.285 | F153: è | G153: 0.031
A154: 13th | B154: =$B$7*$G$154 -> 72.935 | C154: =$C$7*$G$154 -> 63.655 | D154: =$D$7*$G$154 -> 45.095 | E154: =$E$7*$G$154 -> 35.815 | F154: è | G154: 0.029
A155: 14th | B155: =$B$7*$G$155 -> 67.905 | C155: =$C$7*$G$155 -> 59.265 | D155: =$D$7*$G$155 -> 41.985 | E155: =$E$7*$G$155 -> 33.345 | F155: è | G155: 0.027
A156: 15th | B156: =$B$7*$G$156 -> 62.875 | C156: =$C$7*$G$156 -> 54.875 | D156: =$D$7*$G$156 -> 38.875 | E156: =$E$7*$G$156 -> 30.875 | F156: è | G156: 0.025
A157: 16th | B157: =$B$7*$G$157 -> 60.36 | C157: =$C$7*$G$157 -> 52.68 | D157: =$D$7*$G$157 -> 37.32 | E157: =$E$7*$G$157 -> 29.64 | F157: è | G157: 0.024
A158: 17th | B158: =$B$7*$G$158 -> 57.845 | C158: =$C$7*$G$158 -> 50.485 | D158: =$D$7*$G$158 -> 35.765 | E158: =$E$7*$G$158 -> 28.405 | F158: è | G158: 0.023
A159: 18th | B159: =$B$7*$G$159 -> 55.33 | C159: =$C$7*$G$159 -> 48.29 | D159: =$D$7*$G$159 -> 34.21 | E159: =$E$7*$G$159 -> 27.17 | F159: è | G159: 0.022
A160: 19th | B160: =$B$7*$G$160 -> 52.815 | C160: =$C$7*$G$160 -> 46.095 | D160: =$D$7*$G$160 -> 32.655 | E160: =$E$7*$G$160 -> 25.935 | F160: è | G160: 0.021
A161: 20th | B161: =$B$7*$G$161 -> 50.3 | C161: =$C$7*$G$161 -> 43.9 | D161: =$D$7*$G$161 -> 31.1 | E161: =$E$7*$G$161 -> 24.7 | F161: è | G161: 0.02
A162: 21st | B162: =$B$7*$G$162 -> 47.785 | C162: =$C$7*$G$162 -> 41.705 | D162: =$D$7*$G$162 -> 29.545 | E162: =$E$7*$G$162 -> 23.465 | F162: è | G162: 0.019
A163: 22nd | B163: =$B$7*$G$163 -> 45.27 | C163: =$C$7*$G$163 -> 39.51 | D163: =$D$7*$G$163 -> 27.99 | E163: =$E$7*$G$163 -> 22.23 | F163: è | G163: 0.018
A164: 23rd | B164: =$B$7*$G$164 -> 42.755 | C164: =$C$7*$G$164 -> 37.315 | D164: =$D$7*$G$164 -> 26.435 | E164: =$E$7*$G$164 -> 20.995 | F164: è | G164: 0.017
A165: 24th | B165: =$B$7*$G$165 -> 40.24 | C165: =$C$7*$G$165 -> 35.12 | D165: =$D$7*$G$165 -> 24.88 | E165: =$E$7*$G$165 -> 19.76 | F165: è | G165: 0.016
A166: 25th | B166: =$B$7*$G$166 -> 37.725 | C166: =$C$7*$G$166 -> 32.925 | D166: =$D$7*$G$166 -> 23.325 | E166: =$E$7*$G$166 -> 18.525 | F166: è | G166: 0.015
A167: 26th | B167: =$B$7*$G$167 -> 35.21 | C167: =$C$7*$G$167 -> 30.73 | D167: =$D$7*$G$167 -> 21.77 | E167: =$E$7*$G$167 -> 17.29 | F167: è | G167: 0.014
A168: 27th | B168: =$B$7*$G$168 -> 32.695 | C168: =$C$7*$G$168 -> 28.535 | D168: =$D$7*$G$168 -> 20.215 | E168: =$E$7*$G$168 -> 16.055 | F168: è | G168: 0.013
A169: 28th | B169: =$B$7*$G$169 -> 30.18 | C169: =$C$7*$G$169 -> 26.34 | D169: =$D$7*$G$169 -> 18.66 | E169: =$E$7*$G$169 -> 14.82 | F169: è | G169: 0.012
A170: 29th | B170: =$B$7*$G$170 -> 27.665 | C170: =$C$7*$G$170 -> 24.145 | D170: =$D$7*$G$170 -> 17.105 | E170: =$E$7*$G$170 -> 13.585 | F170: è | G170: 0.011
A171: 30th | B171: =$B$7*$G$171 -> 25.15 | C171: =$C$7*$G$171 -> 21.95 | D171: =$D$7*$G$171 -> 15.55 | E171: =$E$7*$G$171 -> 12.35 | F171: è | G171: 0.01
A172: Totals | B172: =SUM(B142:B171) -> 2515 | C172: =SUM(C142:C171) -> 2195 | D172: =SUM(D142:D171) -> 1555 | E172: =SUM(E142:E171) -> 1235 | F172: =B172+C172+D172+E172 -> 7500 | G172: =SUM(G142:G171) -> 1

Sheet 5D Payout BBR
A1: 5D Payout BBR
A2: Entry Fee | B2: # Entries | C2: % Payback | D2: $ From Entry | E2: Added $ | F2: Total Payout | G2: Total $ Held
A3: 50 | B3: 101 | C3: 0.8 | D3: =$A$3*$C$3*$B$3 -> 4040 | E3: 2000 | F3: =($A$3*$C$3)*$B$3+$E$3 -> 6040 | G3: =$A$3*(100%-$C$3)*$B$3 -> 1010
A5: % in each D | B5: 0.3 | C5: 0.25 | D5: 0.2 | E5: 0.15 | F5: 0.1 | G5: Total % Payout | H5: =SUM(B5:F5) -> 1
B6: 1D | C6: 2D | D6: 3D | E6: 4D | F6: 5D
B7: =(($A$3*$B$3*$C$3*$B$5)+($E$3*$B$5)) -> 1812 | C7: =(($A$3*$B$3*$C$3*$C$5)+($E$3*$C$5)) -> 1510 | D7: =(($A$3*$B$3*$C$3*$D$5)+($E$3*$D$5)) -> 1208 | E7: =(($A$3*$B$3*$C$3*$E$5)+($E$3*$E$5)) -> 906 | F7: =(($A$3*$B$3*$C$3*$F$5)+($E$3*$F$5)) -> 604
A8: Totals | B8: =SUM(B7) -> 1812 | C8: =SUM(C7) -> 1510 | D8: =SUM(D7) -> 1208 | E8: 906 | F8: 604 | G8: =SUM(B8:F8) -> 6040
A10: For 1-25 riders 1 place
A11: Placings | B11: 1D | C11: 2D | D11: 3D | E11: 4D | F11: 5D
A12: 1st | B12: =$B$7*$H$12 -> 1812 | C12: =$C$7*$H$12 -> 1510 | D12: =$D$7*$H$12 -> 1208 | E12: =$E$7*$H$12 -> 906 | F12: =$F$7*$H$12 -> 604 | G12: è | H12: 1
A13: Totals | B13: =SUM(B12:B12) -> 1812 | C13: =SUM(C12:C12) -> 1510 | D13: =SUM(D12:D12) -> 1208 | E13: =SUM(E12:E12) -> 906 | F13: =SUM(F12) -> 604 | G13: =SUM(B13:F13) -> 6040 | H13: =SUM(H12) -> 1
A15: For 26-50 riders 2 places
A16: Placings | B16: 1D | C16: 2D | D16: 3D | E16: 4D | F16: 5D
A17: 1st | B17: =$B$7*$H$17 -> 1087.2 | C17: =$C$7*$H$17 -> 906 | D17: =$D$7*$H$17 -> 724.8 | E17: =$E$7*$H$17 -> 543.6 | F17: =$F$7*$H$17 -> 362.4 | G17: è | H17: 0.6
A18: 2nd | B18: =$B$7*$H$18 -> 724.8 | C18: =$C$7*$H$18 -> 604 | D18: =$D$7*$H$18 -> 483.2 | E18: =$E$7*$H$18 -> 362.4 | F18: =$F$7*$H$18 -> 241.6 | G18: è | H18: 0.4
A19: Totals | B19: =SUM(B17:B18) -> 1812 | C19: =SUM(C17:C18) -> 1510 | D19: =SUM(D17:D18) -> 1208 | E19: =SUM(E17:E18) -> 906 | F19: =SUM(F17:F18) -> 604 | G19: =SUM(B19:F19) -> 6040 | H19: =SUM(H17:H18) -> 1
A21: For 51-100 riders 3 places
A22: Placings | B22: 1D | C22: 2D | D22: 3D | E22: 4D | F22: 5D
A23: 1st | B23: =$B$7*$H$23 -> 906 | C23: =$C$7*$H$23 -> 755 | D23: =$D$7*$H$23 -> 604 | E23: =$E$7*$H$23 -> 453 | F23: =$F$7*$H$23 -> 302 | G23: è | H23: 0.5
A24: 2nd | B24: =$B$7*$H$24 -> 543.6 | C24: =$C$7*$H$24 -> 453 | D24: =$D$7*$H$24 -> 362.4 | E24: =$E$7*$H$24 -> 271.8 | F24: =$F$7*$H$24 -> 181.2 | G24: è | H24: 0.3
A25: 3rd | B25: =$B$7*$H$25 -> 362.4 | C25: =$C$7*$H$25 -> 302 | D25: =$D$7*$H$25 -> 241.6 | E25: =$E$7*$H$25 -> 181.2 | F25: =$F$7*$H$25 -> 120.8 | G25: è | H25: 0.2
A26: Totals | B26: =SUM(B23:B25) -> 1812 | C26: =SUM(C23:C25) -> 1510 | D26: =SUM(D23:D25) -> 1208 | E26: =SUM(E23:E25) -> 906 | F26: =SUM(F23:F25) -> 604 | G26: =SUM(B26:F26) -> 6040 | H26: =SUM(H23:H25) -> 1
A28: For 101-143 riders 4 places
A29: Placings | B29: 1D | C29: 2D | D29: 3D | E29: 4D | F29: 5D
A30: 1st | B30: =$B$7*$H$30 -> 724.8 | C30: =$C$7*$H$30 -> 604 | D30: =$D$7*$H$30 -> 483.2 | E30: =$E$7*$H$30 -> 362.4 | F30: =$F$7*$H$30 -> 241.6 | G30: è | H30: 0.4
A31: 2nd | B31: =$B$7*$H$31 -> 543.6 | C31: =$C$7*$H$31 -> 453 | D31: =$D$7*$H$31 -> 362.4 | E31: =$E$7*$H$31 -> 271.8 | F31: =$F$7*$H$31 -> 181.2 | G31: è | H31: 0.3
A32: 3rd | B32: =$B$7*$H$32 -> 362.4 | C32: =$C$7*$H$32 -> 302 | D32: =$D$7*$H$32 -> 241.6 | E32: =$E$7*$H$32 -> 181.2 | F32: =$F$7*$H$32 -> 120.8 | G32: è | H32: 0.2
A33: 4th | B33: =$B$7*$H$33 -> 181.2 | C33: =$C$7*$H$33 -> 151 | D33: =$D$7*$H$33 -> 120.8 | E33: =$E$7*$H$33 -> 90.6 | F33: =$F$7*$H$33 -> 60.4 | G33: è | H33: 0.1
A34: Totals | B34: =SUM(B30:B33) -> 1812 | C34: =SUM(C30:C33) -> 1510 | D34: =SUM(D30:D33) -> 1208 | E34: =SUM(E30:E33) -> 906 | F34: =SUM(F30:F33) -> 604 | G34: =SUM(B34:F34) -> 6040 | H34: =SUM(H30:H33) -> 1
A36: For 144-200 riders 5 places
A37: Placings | B37: 1D | C37: 2D | D37: 3D | E37: 4D | F37: 5D
A38: 1st | B38: =$B$7*$H$38 -> 597.96 | C38: =$C$7*$H$38 -> 498.3 | D38: =$D$7*$H$38 -> 398.64 | E38: =$E$7*$H$38 -> 298.98 | F38: =$F$7*$H$38 -> 199.32 | G38: è | H38: 0.33
A39: 2nd | B39: =$B$7*$H$39 -> 489.24 | C39: =$C$7*$H$39 -> 407.7 | D39: =$D$7*$H$39 -> 326.16 | E39: =$E$7*$H$39 -> 244.62 | F39: =$F$7*$H$39 -> 163.08 | G39: è | H39: 0.27
A40: 3rd | B40: =$B$7*$H$40 -> 362.4 | C40: =$C$7*$H$40 -> 302 | D40: =$D$7*$H$40 -> 241.6 | E40: =$E$7*$H$40 -> 181.2 | F40: =$F$7*$H$40 -> 120.8 | G40: è | H40: 0.2
A41: 4th | B41: =$B$7*$H$41 -> 235.56 | C41: =$C$7*$H$41 -> 196.3 | D41: =$D$7*$H$41 -> 157.04 | E41: =$E$7*$H$41 -> 117.78 | F41: =$F$7*$H$41 -> 78.52 | G41: è | H41: 0.13
A42: 5th | B42: =$B$7*$H$42 -> 126.84 | C42: =$C$7*$H$42 -> 105.7 | D42: =$D$7*$H$42 -> 84.56 | E42: =$E$7*$H$42 -> 63.42 | F42: =$F$7*$H$42 -> 42.28 | G42: è | H42: 0.07
A43: Totals | B43: =SUM(B38:B42) -> 1812 | C43: =SUM(C38:C42) -> 1510 | D43: =SUM(D38:D42) -> 1208 | E43: =SUM(E38:E42) -> 906 | F43: =SUM(F38:F42) -> 604 | G43: =SUM(B43:F43) -> 6040 | H43: =SUM(H38:H42) -> 1
A45: For 201-250 riders 6 places
A46: Placings | B46: 1D | C46: 2D | D46: 3D | E46: 4D | F46: 5D
A47: 1st | B47: =$B$7*$H$47 -> 525.48 | C47: =$C$7*$H$47 -> 437.9 | D47: =$D$7*$H$47 -> 350.32 | E47: =$E$7*$H$47 -> 262.74 | F47: =$F$7*$H$47 -> 175.16 | G47: è | H47: 0.29
A48: 2nd | B48: =$B$7*$H$48 -> 434.88 | C48: =$C$7*$H$48 -> 362.4 | D48: =$D$7*$H$48 -> 289.92 | E48: =$E$7*$H$48 -> 217.44 | F48: =$F$7*$H$48 -> 144.96 | G48: è | H48: 0.24
A49: 3rd | B49: =$B$7*$H$49 -> 344.28 | C49: =$C$7*$H$49 -> 286.9 | D49: =$D$7*$H$49 -> 229.52 | E49: =$E$7*$H$49 -> 172.14 | F49: =$F$7*$H$49 -> 114.76 | G49: è | H49: 0.19
A50: 4th | B50: =$B$7*$H$50 -> 253.68 | C50: =$C$7*$H$50 -> 211.4 | D50: =$D$7*$H$50 -> 169.12 | E50: =$E$7*$H$50 -> 126.84 | F50: =$F$7*$H$50 -> 84.56 | G50: è | H50: 0.14
A51: 5th | B51: =$B$7*$H$51 -> 163.08 | C51: =$C$7*$H$51 -> 135.9 | D51: =$D$7*$H$51 -> 108.72 | E51: =$E$7*$H$51 -> 81.54 | F51: =$F$7*$H$51 -> 54.36 | G51: è | H51: 0.09
A52: 6th | B52: =$B$7*$H$52 -> 90.6 | C52: =$C$7*$H$52 -> 75.5 | D52: =$D$7*$H$52 -> 60.4 | E52: =$E$7*$H$52 -> 45.3 | F52: =$F$7*$H$52 -> 30.2 | G52: è | H52: 0.05
A53: Totals | B53: =SUM(B47:B52) -> 1812 | C53: =SUM(C47:C52) -> 1510 | D53: =SUM(D47:D52) -> 1208 | E53: =SUM(E47:E52) -> 906 | F53: =SUM(F47:F52) -> 604 | G53: =SUM(B53:F53) -> 6040 | H53: =SUM(H47:H52) -> 1
A55: For 251-333 riders 8 places
A56: Placings | B56: 1D | C56: 2D | D56: 3D | E56: 4D | F56: 5D
A57: 1st | B57: =$B$7*$H$57 -> 434.88 | C57: =$C$7*$H$57 -> 362.4 | D57: =$D$7*$H$57 -> 289.92 | E57: =$E$7*$H$57 -> 217.44 | F57: =$F$7*$H$57 -> 144.96 | G57: è | H57: 0.24
A58: 2nd | B58: =$B$7*$H$58 -> 362.4 | C58: =$C$7*$H$58 -> 302 | D58: =$D$7*$H$58 -> 241.6 | E58: =$E$7*$H$58 -> 181.2 | F58: =$F$7*$H$58 -> 120.8 | G58: è | H58: 0.2
A59: 3rd | B59: =$B$7*$H$59 -> 308.04 | C59: =$C$7*$H$59 -> 256.7 | D59: =$D$7*$H$59 -> 205.36 | E59: =$E$7*$H$59 -> 154.02 | F59: =$F$7*$H$59 -> 102.68 | G59: è | H59: 0.17
A60: 4th | B60: =$B$7*$H$60 -> 235.56 | C60: =$C$7*$H$60 -> 196.3 | D60: =$D$7*$H$60 -> 157.04 | E60: =$E$7*$H$60 -> 117.78 | F60: =$F$7*$H$60 -> 78.52 | G60: è | H60: 0.13
A61: 5th | B61: =$B$7*$H$61 -> 181.2 | C61: =$C$7*$H$61 -> 151 | D61: =$D$7*$H$61 -> 120.8 | E61: =$E$7*$H$61 -> 90.6 | F61: =$F$7*$H$61 -> 60.4 | G61: è | H61: 0.1
A62: 6th | B62: =$B$7*$H$62 -> 126.84 | C62: =$C$7*$H$62 -> 105.7 | D62: =$D$7*$H$62 -> 84.56 | E62: =$E$7*$H$62 -> 63.42 | F62: =$F$7*$H$62 -> 42.28 | G62: è | H62: 0.07
A63: 7th | B63: =$B$7*$H$63 -> 90.6 | C63: =$C$7*$H$63 -> 75.5 | D63: =$D$7*$H$63 -> 60.4 | E63: =$E$7*$H$63 -> 45.3 | F63: =$F$7*$H$63 -> 30.2 | G63: è | H63: 0.05
A64: 8th | B64: =$B$7*$H$64 -> 72.48 | C64: =$C$7*$H$64 -> 60.4 | D64: =$D$7*$H$64 -> 48.32 | E64: =$E$7*$H$64 -> 36.24 | F64: =$F$7*$H$64 -> 24.16 | G64: è | H64: 0.04
A65: Totals | B65: =SUM(B57:B64) -> 1812 | C65: =SUM(C57:C64) -> 1510 | D65: =SUM(D57:D64) -> 1208 | E65: =SUM(E57:E64) -> 906 | F65: =SUM(F57:F64) -> 604 | G65: =SUM(B65:F65) -> 6040 | H65: =SUM(H57:H64) -> 1
A67: For 334-500 riders 10 places
A68: Placings | B68: 1D | C68: 2D | D68: 3D | E68: 4D | F68: 5D
A69: 1st | B69: =$B$7*$H$69 -> 380.52 | C69: =$C$7*$H$69 -> 317.1 | D69: =$D$7*$H$69 -> 253.68 | E69: =$E$7*$H$69 -> 190.26 | F69: =$F$7*$H$69 -> 126.84 | G69: è | H69: 0.21
A70: 2nd | B70: =$B$7*$H$70 -> 326.16 | C70: =$C$7*$H$70 -> 271.8 | D70: =$D$7*$H$70 -> 217.44 | E70: =$E$7*$H$70 -> 163.08 | F70: =$F$7*$H$70 -> 108.72 | G70: è | H70: 0.18
A71: 3rd | B71: =$B$7*$H$71 -> 271.8 | C71: =$C$7*$H$71 -> 226.5 | D71: =$D$7*$H$71 -> 181.2 | E71: =$E$7*$H$71 -> 135.9 | F71: =$F$7*$H$71 -> 90.6 | G71: è | H71: 0.15
A72: 4th | B72: =$B$7*$H$72 -> 217.44 | C72: =$C$7*$H$72 -> 181.2 | D72: =$D$7*$H$72 -> 144.96 | E72: =$E$7*$H$72 -> 108.72 | F72: =$F$7*$H$72 -> 72.48 | G72: è | H72: 0.12
A73: 5th | B73: =$B$7*$H$73 -> 163.08 | C73: =$C$7*$H$73 -> 135.9 | D73: =$D$7*$H$73 -> 108.72 | E73: =$E$7*$H$73 -> 81.54 | F73: =$F$7*$H$73 -> 54.36 | G73: è | H73: 0.09
A74: 6th | B74: =$B$7*$H$74 -> 126.84 | C74: =$C$7*$H$74 -> 105.7 | D74: =$D$7*$H$74 -> 84.56 | E74: =$E$7*$H$74 -> 63.42 | F74: =$F$7*$H$74 -> 42.28 | G74: è | H74: 0.07
A75: 7th | B75: =$B$7*$H$75 -> 108.72 | C75: =$C$7*$H$75 -> 90.6 | D75: =$D$7*$H$75 -> 72.48 | E75: =$E$7*$H$75 -> 54.36 | F75: =$F$7*$H$75 -> 36.24 | G75: è | H75: 0.06
A76: 8th | B76: =$B$7*$H$76 -> 90.6 | C76: =$C$7*$H$76 -> 75.5 | D76: =$D$7*$H$76 -> 60.4 | E76: =$E$7*$H$76 -> 45.3 | F76: =$F$7*$H$76 -> 30.2 | G76: è | H76: 0.05
A77: 9th | B77: =$B$7*$H$77 -> 72.48 | C77: =$C$7*$H$77 -> 60.4 | D77: =$D$7*$H$77 -> 48.32 | E77: =$E$7*$H$77 -> 36.24 | F77: =$F$7*$H$77 -> 24.16 | G77: è | H77: 0.04
A78: 10th | B78: =$B$7*$H$78 -> 54.36 | C78: =$C$7*$H$78 -> 45.3 | D78: =$D$7*$H$78 -> 36.24 | E78: =$E$7*$H$78 -> 27.18 | F78: =$F$7*$H$78 -> 18.12 | G78: è | H78: 0.03
A79: Totals | B79: =SUM(B69:B78) -> 1812 | C79: =SUM(C69:C78) -> 1510 | D79: 1208 | E79: 906 | F79: 604 | G79: =SUM(B79:F79) -> 6040 | H79: =SUM(H69:H78) -> 1
A81: For 501-666 riders 12 places
A82: Placings | B82: 1D | C82: 2D | D82: 3D | E82: 4D | F82: 5D
A83: 1st | B83: =$B$7*$H$83 -> 344.28 | C83: =$C$7*$H$83 -> 286.9 | D83: =$D$7*$H$83 -> 229.52 | E83: =$E$7*$H$83 -> 172.14 | F83: =$F$7*$H$83 -> 114.76 | G83: è | H83: 0.19
A84: 2nd | B84: =$B$7*$H$84 -> 271.8 | C84: =$C$7*$H$84 -> 226.5 | D84: =$D$7*$H$84 -> 181.2 | E84: =$E$7*$H$84 -> 135.9 | F84: =$F$7*$H$84 -> 90.6 | G84: è | H84: 0.15
A85: 3rd | B85: =$B$7*$H$85 -> 217.44 | C85: =$C$7*$H$85 -> 181.2 | D85: =$D$7*$H$85 -> 144.96 | E85: =$E$7*$H$85 -> 108.72 | F85: =$F$7*$H$85 -> 72.48 | G85: è | H85: 0.12
A86: 4th | B86: =$B$7*$H$86 -> 181.2 | C86: =$C$7*$H$86 -> 151 | D86: =$D$7*$H$86 -> 120.8 | E86: =$E$7*$H$86 -> 90.6 | F86: =$F$7*$H$86 -> 60.4 | G86: è | H86: 0.1
A87: 5th | B87: =$B$7*$H$87 -> 163.08 | C87: =$C$7*$H$87 -> 135.9 | D87: =$D$7*$H$87 -> 108.72 | E87: =$E$7*$H$87 -> 81.54 | F87: =$F$7*$H$87 -> 54.36 | G87: è | H87: 0.09
A88: 6th | B88: =$B$7*$H$88 -> 144.96 | C88: =$C$7*$H$88 -> 120.8 | D88: =$D$7*$H$88 -> 96.64 | E88: =$E$7*$H$88 -> 72.48 | F88: =$F$7*$H$88 -> 48.32 | G88: è | H88: 0.08
A89: 7th | B89: =$B$7*$H$89 -> 126.84 | C89: =$C$7*$H$89 -> 105.7 | D89: =$D$7*$H$89 -> 84.56 | E89: =$E$7*$H$89 -> 63.42 | F89: =$F$7*$H$89 -> 42.28 | G89: è | H89: 0.07
A90: 8th | B90: =$B$7*$H$90 -> 108.72 | C90: =$C$7*$H$90 -> 90.6 | D90: =$D$7*$H$90 -> 72.48 | E90: =$E$7*$H$90 -> 54.36 | F90: =$F$7*$H$90 -> 36.24 | G90: è | H90: 0.06
A91: 9th | B91: =$B$7*$H$91 -> 90.6 | C91: =$C$7*$H$91 -> 75.5 | D91: =$D$7*$H$91 -> 60.4 | E91: =$E$7*$H$91 -> 45.3 | F91: =$F$7*$H$91 -> 30.2 | G91: è | H91: 0.05
A92: 10th | B92: =$B$7*$H$92 -> 72.48 | C92: =$C$7*$H$92 -> 60.4 | D92: =$D$7*$H$92 -> 48.32 | E92: =$E$7*$H$92 -> 36.24 | F92: =$F$7*$H$92 -> 24.16 | G92: è | H92: 0.04
A93: 11th | B93: =$B$7*$H$93 -> 54.36 | C93: =$C$7*$H$93 -> 45.3 | D93: =$D$7*$H$93 -> 36.24 | E93: =$E$7*$H$93 -> 27.18 | F93: =$F$7*$H$93 -> 18.12 | G93: è | H93: 0.03
A94: 12th | B94: =$B$7*$H$94 -> 36.24 | C94: =$C$7*$H$94 -> 30.2 | D94: =$D$7*$H$94 -> 24.16 | E94: =$E$7*$H$94 -> 18.12 | F94: =$F$7*$H$94 -> 12.08 | G94: è | H94: 0.02
A95: Totals | B95: =SUM(B83:B94) -> 1812 | C95: =SUM(C83:C94) -> 1510 | D95: =SUM(D83:D94) -> 1208 | E95: =SUM(E83:E94) -> 906 | F95: =SUM(F83:F94) -> 604 | G95: =SUM(B95:F95) -> 6040 | H95: =SUM(H83:H94) -> 1
A97: For 667-1000 riders 15 places
A98: Placings | B98: 1D | C98: 2D | D98: 3D | E98: 4D | F98: 5D
A99: 1st | B99: =$B$7*$H$99 -> 326.16 | C99: =$C$7*$H$99 -> 271.8 | D99: =$D$7*$H$99 -> 217.44 | E99: =$E$7*$H$99 -> 163.08 | F99: =$F$7*$H$99 -> 108.72 | G99: è | H99: 0.18
A100: 2nd | B100: =$B$7*$H$100 -> 271.8 | C100: =$C$7*$H$100 -> 226.5 | D100: =$D$7*$H$100 -> 181.2 | E100: =$E$7*$H$100 -> 135.9 | F100: =$F$7*$H$100 -> 90.6 | G100: è | H100: 0.15
A101: 3rd | B101: =$B$7*$H$101 -> 217.44 | C101: =$C$7*$H$101 -> 181.2 | D101: =$D$7*$H$101 -> 144.96 | E101: =$E$7*$H$101 -> 108.72 | F101: =$F$7*$H$101 -> 72.48 | G101: è | H101: 0.12
A102: 4th | B102: =$B$7*$H$102 -> 181.2 | C102: =$C$7*$H$102 -> 151 | D102: =$D$7*$H$102 -> 120.8 | E102: =$E$7*$H$102 -> 90.6 | F102: =$F$7*$H$102 -> 60.4 | G102: è | H102: 0.1
A103: 5th | B103: =$B$7*$H$103 -> 154.02 | C103: =$C$7*$H$103 -> 128.35 | D103: =$D$7*$H$103 -> 102.68 | E103: =$E$7*$H$103 -> 77.01 | F103: =$F$7*$H$103 -> 51.34 | G103: è | H103: 0.085
A104: 6th | B104: =$B$7*$H$104 -> 126.84 | C104: =$C$7*$H$104 -> 105.7 | D104: =$D$7*$H$104 -> 84.56 | E104: =$E$7*$H$104 -> 63.42 | F104: =$F$7*$H$104 -> 42.28 | G104: è | H104: 0.07
A105: 7th | B105: =$B$7*$H$105 -> 108.72 | C105: =$C$7*$H$105 -> 90.6 | D105: =$D$7*$H$105 -> 72.48 | E105: =$E$7*$H$105 -> 54.36 | F105: =$F$7*$H$105 -> 36.24 | G105: è | H105: 0.06
A106: 8th | B106: =$B$7*$H$106 -> 90.6 | C106: =$C$7*$H$106 -> 75.5 | D106: =$D$7*$H$106 -> 60.4 | E106: =$E$7*$H$106 -> 45.3 | F106: =$F$7*$H$106 -> 30.2 | G106: è | H106: 0.05
A107: 9th | B107: =$B$7*$H$107 -> 77.01 | C107: =$C$7*$H$107 -> 64.175 | D107: =$D$7*$H$107 -> 51.34 | E107: =$E$7*$H$107 -> 38.505 | F107: =$F$7*$H$107 -> 25.67 | G107: è | H107: 0.0425
A108: 10th | B108: =$B$7*$H$108 -> 63.42 | C108: =$C$7*$H$108 -> 52.85 | D108: =$D$7*$H$108 -> 42.28 | E108: =$E$7*$H$108 -> 31.71 | F108: =$F$7*$H$108 -> 21.14 | G108: è | H108: 0.035
A109: 11th | B109: =$B$7*$H$109 -> 54.36 | C109: =$C$7*$H$109 -> 45.3 | D109: =$D$7*$H$109 -> 36.24 | E109: =$E$7*$H$109 -> 27.18 | F109: =$F$7*$H$109 -> 18.12 | G109: è | H109: 0.03
A110: 12th | B110: =$B$7*$H$110 -> 45.3 | C110: =$C$7*$H$110 -> 37.75 | D110: =$D$7*$H$110 -> 30.2 | E110: =$E$7*$H$110 -> 22.65 | F110: =$F$7*$H$110 -> 15.1 | G110: è | H110: 0.025
A111: 13th | B111: =$B$7*$H$111 -> 36.24 | C111: =$C$7*$H$111 -> 30.2 | D111: =$D$7*$H$111 -> 24.16 | E111: =$E$7*$H$111 -> 18.12 | F111: =$F$7*$H$111 -> 12.08 | G111: è | H111: 0.02
A112: 14th | B112: =$B$7*$H$112 -> 31.71 | C112: =$C$7*$H$112 -> 26.425 | D112: =$D$7*$H$112 -> 21.14 | E112: =$E$7*$H$112 -> 15.855 | F112: =$F$7*$H$112 -> 10.57 | G112: è | H112: 0.0175
A113: 15th | B113: =$B$7*$H$113 -> 27.18 | C113: =$C$7*$H$113 -> 22.65 | D113: =$D$7*$H$113 -> 18.12 | E113: =$E$7*$H$113 -> 13.59 | F113: =$F$7*$H$113 -> 9.06 | G113: è | H113: 0.015
A114: Totals | B114: =SUM(B99:B113) -> 1812 | C114: =SUM(C99:C113) -> 1510 | D114: =SUM(D99:D113) -> 1208 | E114: =SUM(E99:E113) -> 906 | F114: =SUM(F99:F113) -> 604 | G114: =SUM(B114:F114) -> 6040 | H114: =SUM(H99:H113) -> 1
A116: For 1001-1500 riders 20 places
A117: Placings | B117: 1D | C117: 2D | D117: 3D | E117: 4D | F117: 5D
A118: 1st | B118: =$B$7*$H$118 -> 253.68 | C118: =$C$7*$H$118 -> 211.4 | D118: =$D$7*$H$118 -> 169.12 | E118: =$E$7*$H$118 -> 126.84 | F118: =$F$7*$H$118 -> 84.56 | G118: è | H118: 0.14
A119: 2nd | B119: =$B$7*$H$119 -> 199.32 | C119: =$C$7*$H$119 -> 166.1 | D119: =$D$7*$H$119 -> 132.88 | E119: =$E$7*$H$119 -> 99.66 | F119: =$F$7*$H$119 -> 66.44 | G119: è | H119: 0.11
A120: 3rd | B120: =$B$7*$H$120 -> 163.08 | C120: =$C$7*$H$120 -> 135.9 | D120: =$D$7*$H$120 -> 108.72 | E120: =$E$7*$H$120 -> 81.54 | F120: =$F$7*$H$120 -> 54.36 | G120: è | H120: 0.09
A121: 4th | B121: =$B$7*$H$121 -> 139.524 | C121: =$C$7*$H$121 -> 116.27 | D121: =$D$7*$H$121 -> 93.016 | E121: =$E$7*$H$121 -> 69.762 | F121: =$F$7*$H$121 -> 46.508 | G121: è | H121: 0.077
A122: 5th | B122: =$B$7*$H$122 -> 126.84 | C122: =$C$7*$H$122 -> 105.7 | D122: =$D$7*$H$122 -> 84.56 | E122: =$E$7*$H$122 -> 63.42 | F122: =$F$7*$H$122 -> 42.28 | G122: è | H122: 0.07
A123: 6th | B123: =$B$7*$H$123 -> 117.78 | C123: =$C$7*$H$123 -> 98.15 | D123: =$D$7*$H$123 -> 78.52 | E123: =$E$7*$H$123 -> 58.89 | F123: =$F$7*$H$123 -> 39.26 | G123: è | H123: 0.065
A124: 7th | B124: =$B$7*$H$124 -> 108.72 | C124: =$C$7*$H$124 -> 90.6 | D124: =$D$7*$H$124 -> 72.48 | E124: =$E$7*$H$124 -> 54.36 | F124: =$F$7*$H$124 -> 36.24 | G124: è | H124: 0.06
A125: 8th | B125: =$B$7*$H$125 -> 99.66 | C125: =$C$7*$H$125 -> 83.05 | D125: =$D$7*$H$125 -> 66.44 | E125: =$E$7*$H$125 -> 49.83 | F125: =$F$7*$H$125 -> 33.22 | G125: è | H125: 0.055
A126: 9th | B126: =$B$7*$H$126 -> 90.6 | C126: =$C$7*$H$126 -> 75.5 | D126: =$D$7*$H$126 -> 60.4 | E126: =$E$7*$H$126 -> 45.3 | F126: =$F$7*$H$126 -> 30.2 | G126: è | H126: 0.05
A127: 10th | B127: =$B$7*$H$127 -> 81.54 | C127: =$C$7*$H$127 -> 67.95 | D127: =$D$7*$H$127 -> 54.36 | E127: =$E$7*$H$127 -> 40.77 | F127: =$F$7*$H$127 -> 27.18 | G127: è | H127: 0.045
A128: 11th | B128: =$B$7*$H$128 -> 72.48 | C128: =$C$7*$H$128 -> 60.4 | D128: =$D$7*$H$128 -> 48.32 | E128: =$E$7*$H$128 -> 36.24 | F128: =$F$7*$H$128 -> 24.16 | G128: è | H128: 0.04
A129: 12th | B129: =$B$7*$H$129 -> 67.044 | C129: =$C$7*$H$129 -> 55.87 | D129: =$D$7*$H$129 -> 44.696 | E129: =$E$7*$H$129 -> 33.522 | F129: =$F$7*$H$129 -> 22.348 | G129: è | H129: 0.037
A130: 13th | B130: =$B$7*$H$130 -> 59.796 | C130: =$C$7*$H$130 -> 49.83 | D130: =$D$7*$H$130 -> 39.864 | E130: =$E$7*$H$130 -> 29.898 | F130: =$F$7*$H$130 -> 19.932 | G130: è | H130: 0.033
A131: 14th | B131: =$B$7*$H$131 -> 52.548 | C131: =$C$7*$H$131 -> 43.79 | D131: =$D$7*$H$131 -> 35.032 | E131: =$E$7*$H$131 -> 26.274 | F131: =$F$7*$H$131 -> 17.516 | G131: è | H131: 0.029
A132: 15th | B132: =$B$7*$H$132 -> 45.3 | C132: =$C$7*$H$132 -> 37.75 | D132: =$D$7*$H$132 -> 30.2 | E132: =$E$7*$H$132 -> 22.65 | F132: =$F$7*$H$132 -> 15.1 | G132: è | H132: 0.025
A133: 16th | B133: =$B$7*$H$133 -> 38.052 | C133: =$C$7*$H$133 -> 31.71 | D133: =$D$7*$H$133 -> 25.368 | E133: =$E$7*$H$133 -> 19.026 | F133: =$F$7*$H$133 -> 12.684 | G133: è | H133: 0.021
A134: 17th | B134: =$B$7*$H$134 -> 30.804 | C134: =$C$7*$H$134 -> 25.67 | D134: =$D$7*$H$134 -> 20.536 | E134: =$E$7*$H$134 -> 15.402 | F134: =$F$7*$H$134 -> 10.268 | G134: è | H134: 0.017
A135: 18th | B135: =$B$7*$H$135 -> 25.368 | C135: =$C$7*$H$135 -> 21.14 | D135: =$D$7*$H$135 -> 16.912 | E135: =$E$7*$H$135 -> 12.684 | F135: =$F$7*$H$135 -> 8.456 | G135: è | H135: 0.014
A136: 19th | B136: =$B$7*$H$136 -> 21.744 | C136: =$C$7*$H$136 -> 18.12 | D136: =$D$7*$H$136 -> 14.496 | E136: =$E$7*$H$136 -> 10.872 | F136: =$F$7*$H$136 -> 7.248 | G136: è | H136: 0.012
A137: 20th | B137: =$B$7*$H$137 -> 18.12 | C137: =$C$7*$H$137 -> 15.1 | D137: =$D$7*$H$137 -> 12.08 | E137: =$E$7*$H$137 -> 9.06 | F137: =$F$7*$H$137 -> 6.04 | G137: è | H137: 0.01
A138: Totals | B138: =SUM(B118:B137) -> 1812 | C138: =SUM(C118:C137) -> 1510 | D138: 1208 | E138: 906 | F138: 604 | G138: =SUM(B138:F138) -> 6040 | H138: =SUM(H118:H137) -> 1
A140: For 1501 or More riders 30 places
A141: Placings | B141: 1D | C141: 2D | D141: 3D | E141: 4D | F141: 5D
A142: 1st | B142: =$B$7*$H142 -> 217.44 | C142: =$C$7*$H142 -> 181.2 | D142: =$D$7*$H142 -> 144.96 | E142: =$E$7*$H142 -> 108.72 | F142: =$F$7*$H142 -> 72.48 | G142: è | H142: 0.12
A143: 2nd | B143: =$B$7*$H143 -> 172.14 | C143: 143.45 | D143: 114.76 | E143: 86.07 | F143: 57.38 | G143: è | H143: 0.095
A144: 3rd | B144: =$B$7*$H144 -> 132.276 | C144: 110.23 | D144: 88.184 | E144: 66.138 | F144: 44.092 | G144: è | H144: 0.073
A145: 4th | B145: =$B$7*$H145 -> 112.344 | C145: 93.62 | D145: 74.896 | E145: 56.172 | F145: 37.448 | G145: è | H145: 0.062
A146: 5th | B146: 90.6 | C146: 75.5 | D146: 60.4 | E146: 45.3 | F146: 30.2 | G146: è | H146: 0.05
A147: 6th | B147: 81.54 | C147: 67.95 | D147: 54.36 | E147: 40.77 | F147: 27.18 | G147: è | H147: 0.045
A148: 7th | B148: 77.916 | C148: 64.93 | D148: 51.944 | E148: 38.958 | F148: 25.972 | G148: è | H148: 0.043
A149: 8th | B149: 72.48 | C149: 60.4 | D149: 48.32 | E149: 36.24 | F149: 24.16 | G149: è | H149: 0.04
A150: 9th | B150: 67.044 | C150: 55.87 | D150: 44.696 | E150: 33.522 | F150: 22.348 | G150: è | H150: 0.037
A151: 10th | B151: 63.42 | C151: 52.85 | D151: 42.28 | E151: 31.71 | F151: 21.14 | G151: è | H151: 0.035
A152: 11th | B152: 59.796 | C152: 49.83 | D152: 39.864 | E152: 29.898 | F152: 19.932 | G152: è | H152: 0.033
A153: 12th | B153: 56.172 | C153: 46.81 | D153: 37.448 | E153: 28.086 | F153: 18.724 | G153: è | H153: 0.031
A154: 13th | B154: 52.548 | C154: 43.79 | D154: 35.032 | E154: 26.274 | F154: 17.516 | G154: è | H154: 0.029
A155: 14th | B155: 48.924 | C155: 40.77 | D155: 32.616 | E155: 24.462 | F155: 16.308 | G155: è | H155: 0.027
A156: 15th | B156: 45.3 | C156: 37.75 | D156: 30.2 | E156: 22.65 | F156: 15.1 | G156: è | H156: 0.025
A157: 16th | B157: 43.488 | C157: 36.24 | D157: 28.992 | E157: 21.744 | F157: 14.496 | G157: è | H157: 0.024
A158: 17th | B158: 41.676 | C158: 34.73 | D158: 27.784 | E158: 20.838 | F158: 13.892 | G158: è | H158: 0.023
A159: 18th | B159: 39.864 | C159: 33.22 | D159: 26.576 | E159: 19.932 | F159: 13.288 | G159: è | H159: 0.022
A160: 19th | B160: 38.052 | C160: 31.71 | D160: 25.368 | E160: 19.026 | F160: 12.684 | G160: è | H160: 0.021
A161: 20th | B161: 36.24 | C161: 30.2 | D161: 24.16 | E161: 18.12 | F161: 12.08 | G161: è | H161: 0.02
A162: 21st | B162: 34.428 | C162: 28.69 | D162: 22.952 | E162: 17.214 | F162: 11.476 | G162: è | H162: 0.019
A163: 22nd | B163: 32.616 | C163: 27.18 | D163: 21.744 | E163: 16.308 | F163: 10.872 | G163: è | H163: 0.018
A164: 23rd | B164: 30.804 | C164: 25.67 | D164: 20.536 | E164: 15.402 | F164: 10.268 | G164: è | H164: 0.017
A165: 24th | B165: 28.992 | C165: 24.16 | D165: 19.328 | E165: 14.496 | F165: 9.664 | G165: è | H165: 0.016
A166: 25th | B166: 27.18 | C166: 22.65 | D166: 18.12 | E166: 13.59 | F166: 9.06 | G166: è | H166: 0.015
A167: 26th | B167: 25.368 | C167: 21.14 | D167: 16.912 | E167: 12.684 | F167: 8.456 | G167: è | H167: 0.014
A168: 27th | B168: 23.556 | C168: 19.63 | D168: 15.704 | E168: 11.778 | F168: 7.852 | G168: è | H168: 0.013
A169: 28th | B169: 21.744 | C169: 18.12 | D169: 14.496 | E169: 10.872 | F169: 7.248 | G169: è | H169: 0.012
A170: 29th | B170: 19.932 | C170: 16.61 | D170: 13.288 | E170: 9.966 | F170: 6.644 | G170: è | H170: 0.011
A171: 30th | B171: 18.12 | C171: 15.1 | D171: 12.08 | E171: 9.06 | F171: 6.04 | G171: è | H171: 0.01
A172: Totals | B172: =SUM(B142:B171) -> 1812 | C172: =SUM(C142:C171) -> 1510 | D172: 1208 | E172: 906 | F172: 604 | G172: =SUM(B172:F172) -> 6040 | H172: =SUM(H142:H171) -> 1

Sheet DON'T TOUCH (hidden)
A2: Yes | C2: S | D2: 5 | E2: X
C3: A | D3: 10
C4: Y | D4: 15
C5: P | D5: BP
D6: SCR
